Workbook

Sheet Firm
A1: Code | B1: Name | C1: Stock_Region | D1: Stock_Name | E1: Stock_Code | F1: Chinese_Name | G1: Report_Year | H1: Assets | I1: Revenue | J1: Size | K1: Num_Employ | L1: Source | M1: Type_Region | N1: 1 | O1: 1.1 | P1: 1.1.1 | Q1: 1.1.2 | R1: 1.1.3 | S1: 1.2 | T1: 1.2.1 | U1: 1.2.2 | V1: 1.2.3 | W1: 1.3 | X1: 1.3.1 | Y1: 1.3.1.1 | Z1: 1.3.1.2 | AA1: 1.3.1.3 | AB1: 1.3.1.4 | AC1: 1.3.1.5 | AD1: 1.3.1.6 | AE1: 1.3.1.7 | AF1: 1.3.2 | AG1: 1.3.2.1 | AH1: 1.3.3 | AI1: 1.3.3.1 | AJ1: 1.3.3.2 | AK1: 1.3.3.3 | AL1: 1.3.3.4 | AM1: 1.3.3.5 | AN1: 1.3.3.6 | AO1: 1.3.3.7 | AP1: 1.3.4 | AQ1: 1.3.4.1 | AR1: 1.3.4.2 | AS1: 1.3.4.3 | AT1: 1.3.5 | AU1: 1.3.5.1 | AV1: 1.4 | AW1: 1.4.1 | AX1: 1.4.1.1 | AY1: 1.4.1.2 | AZ1: 1.4.1.3 | BA1: 1.4.1.4 | BB1: 1.4.1.5 | BC1: 1.4.2 | BD1: 1.4.2.1 | BE1: 1.4.2.2 | BF1: 1.4.2.3 | BG1: 1.4.2.4 | BH1: 1.4.2.5 | BI1: 1.4.2.6 | BJ1: 1.4.2.7 | BK1: 1.4.3 | BL1: 1.4.3.1 | BM1: 1.4.3.2 | BN1: 1.4.3.3 | BO1: 1.4.3.4 | BP1: 1.4.3.5 | BQ1: 1.4.3.6 | BR1: 1.4.4 | BS1: 1.4.4.1 | BT1: 1.4.4.2 | BU1: 1.4.4.3 | BV1: 1.4.4.4 | BW1: 1.4.4.5 | BX1: 1.4.5 | BY1: 1.4.5.1 | BZ1: 1.4.5.2 | CA1: 1.4.5.3 | CB1: 1.4.5.4 | CC1: 1.4.5.5 | CD1: 1.4.5.6 | CE1: 1.4.5.7 | CF1: 1.4.5.8 | CG1: 1.4.5.9 | CH1: 2 | CI1: 2.1 | CJ1: 2.1.1 | CK1: 2.1.1.1 | CL1: 2.1.1.2 | CM1: 2.1.1.3 | CN1: 2.1.1.4 | CO1: 2.1.1.5 | CP1: 2.1.2 | CQ1: 2.1.2.1 | CR1: 2.1.2.2 | CS1: 2.1.2.3 | CT1: 2.1.2.4 | CU1: 2.1.3 | CV1: 2.1.3.1 | CW1: 2.1.3.2 | CX1: 2.1.3.3 | CY1: 2.1.3.4 | CZ1: 2.1.3.5 | DA1: 2.1.3.6 | DB1: 2.1.3.7 | DC1: 2.1.4 | DD1: 2.1.4.1 | DE1: 2.1.4.1.1 | DF1: 2.1.4.1.2 | DG1: 2.1.4.1.3 | DH1: 2.1.4.1.4 | DI1: 2.1.4.2 | DJ1: 2.1.4.2.1 | DK1: 2.1.4.2.2 | DL1: 2.2 | DM1: 2.3 | DN1: 2.3.1 | DO1: 2.3.2 | DP1: 2.3.3
A2: 0 | B2: 360科技 | C2: SH | D2: 三六零 | E2: =VLOOKUP($D2,[1]Sheet1!$A$1:$M$5087,2,FALSE) -> 601360.SH | F2: =VLOOKUP($D2,[1]Sheet1!$A$1:$M$5087,9,FALSE) -> 三六零安全科技股份有限公司 | G2: 2021 | H2: 42040000000.00 | I2: 10890000000.00 | J2: L | K2: 7393.00 | L2: qichacha | M2: Beijing | BS2: 1.00
A3: 1 | B3: 51WORLD | D3: 51WORLD | F3: 北京五一视界数字孪生科技股份有限公司 | G3: 2021 | H3: 524000000.00 | I3: 138000000.00 | J3: M | K3: 171.00 | L3: qichacha | M3: Beijing | CO3: 1.00
A4: 2 | B4: 706所 | D4: 706所 | F4: 北京航天爱威电子技术有限公司 | J4: M | K4: 113.00 | L4: qichacha | M4: Beijing | R4: 1.00
A5: 3 | B5: 艾克斯特 | D5: 艾克斯特 | F5: 北京艾克斯特科技有限公司 | J5: S | K5: 24.00 | L5: qichacha | M5: Beijing | AB5: 1.00 | AC5: 1.00 | AD5: 1.00 | AQ5: 1.00
A6: 4 | B6: 爱创科技 | D6: 爱创科技 | F6: 北京爱创科技股份有限公司 | J6: M | K6: 242.00 | L6: qichacha | M6: Beijing | U6: 1.00
A7: 5 | B7: 安华金和 | D7: 安华金和 | F7: 北京安华金和科技有限公司 | J7: S | K7: 74.00 | L7: qichacha | M7: Beijing | CA7: 1.00 | CB7: 1.00 | CC7: 1.00 | CG7: 1.00
A8: 6 | B8: 安世亚太 | D8: 安世亚太 | F8: 安世亚太科技股份有限公司 | G8: 2017 | H8: 902000000.00 | I8: 159000000.00 | J8: M | K8: 167.00 | L8: qichacha | M8: Beijing | Z8: 1.00 | CQ8: 1.00 | CR8: 1.00 | CS8: 1.00 | CT8: 1.00
A9: 7 | B9: 百望 | D9: 百望 | F9: 百望股份有限公司 | J9: L | K9: 436.00 | L9: qichacha | M9: Beijing | DL9: 1.00
A10: 8 | B10: 梆梆安全 | D10: 梆梆安全 | F10: 北京梆梆安全科技有限公司 | J10: M | K10: 353.00 | L10: qichacha | M10: Beijing | AX10: 1.00
A11: 9 | B11: 北京航天测控 | D11: 北京航天测控 | F11: 北京航天测控技术有限公司 | J11: L | K11: 392.00 | L11: qichacha | M11: Beijing | AN11: 1.00 | AO11: 1.00
A12: 10 | B12: 北京英贝思 | D12: 北京英贝思 | F12: 北京京能信息技术有限公司 | J12: M | K12: 123.00 | L12: qichacha | M12: Beijing | AM12: 1.00
A13: 11 | B13: 北信源 | C13: SZ | D13: 北信源 | E13: =VLOOKUP($D13,[1]Sheet1!$A$1:$M$5087,2,FALSE) -> 300352.SZ | F13: =VLOOKUP($D13,[1]Sheet1!$A$1:$M$5087,9,FALSE) -> 北京北信源软件股份有限公司 | G13: 2021 | H13: 2831000000.00 | I13: 675000000.00 | J13: L | K13: 1699.00 | L13: qichacha | M13: Beijing | BT13: 1.00
A14: 12 | B14: 大唐软件 | D14: 大唐软件 | F14: 大唐软件技术股份有限公司 | J14: M | K14: 199.00 | L14: qichacha | M14: Beijing | T14: 1.00
A15: 13 | B15: 东方国信 | C15: SZ | D15: 东方国信 | E15: =VLOOKUP($D15,[1]Sheet1!$A$1:$M$5087,2,FALSE) -> 300166.SZ | F15: =VLOOKUP($D15,[1]Sheet1!$A$1:$M$5087,9,FALSE) -> 北京东方国信科技股份有限公司 | G15: 2021 | H15: 8632000000.00 | I15: 2470000000.00 | J15: L | K15: 8688.00 | L15: qichacha | M15: Beijing | U15: 1.00 | CV15: 1.00 | CW15: 1.00 | CX15: 1.00 | CY15: 1.00 | CZ15: 1.00 | DA15: 1.00 | DB15: 1.00 | DE15: 1.00 | DF15: 1.00 | DG15: 1.00 | DH15: 1.00 | DJ15: 1.00 | DK15: 1.00 | DN15: 1.00 | DO15: 1.00 | DP15: 1.00
A16: 14 | B16: 东华软件 | C16: SZ | D16: 东华软件 | E16: =VLOOKUP($D16,[1]Sheet1!$A$1:$M$5087,2,FALSE) -> 002065.SZ | F16: =VLOOKUP($D16,[1]Sheet1!$A$1:$M$5087,9,FALSE) -> 东华软件股份公司 | G16: 2021 | H16: 21070000000.00 | I16: 10880000000.00 | J16: L | K16: 11766.00 | L16: qichacha | M16: Beijing | AL16: 1.00 | AS16: 1.00
A17: 15 | B17: 东软集团 | C17: SH | D17: 东软集团 | E17: =VLOOKUP($D17,[1]Sheet1!$A$1:$M$5087,2,FALSE) -> 600718.SH | F17: =VLOOKUP($D17,[1]Sheet1!$A$1:$M$5087,9,FALSE) -> 东软集团股份有限公司 | G17: 2021 | H17: 18310000000.00 | I17: 8735000000.00 | J17: L | K17: 17919.00 | L17: qichacha | M17: Beijing | AM17: 1.00
A18: 16 | B18: 东土科技 | C18: SZ | D18: 东土科技 | E18: =VLOOKUP($D18,[1]Sheet1!$A$1:$M$5087,2,FALSE) -> 300353.SZ | F18: =VLOOKUP($D18,[1]Sheet1!$A$1:$M$5087,9,FALSE) -> 北京东土科技股份有限公司 | G18: 2021 | H18: 2357000000.00 | I18: 941000000.00 | J18: L | K18: 1633.00 | L18: qichacha | M18: Beijing | R18: 1.00 | DN18: 1.00 | DO18: 1.00 | DP18: 1.00
A19: 17 | B19: 国保金泰 | D19: 国保金泰 | F19: 北京国保金泰信息安全技术有限公司 | J19: S | K19: 32.00 | L19: qichacha | M19: Beijing | BG19: 1.00
A20: 18 | B20: 国能智深 | D20: 国能智深 | F20: 国能智深控制技术有限公司 | J20: M | K20: 277.00 | L20: qichacha | M20: Beijing | AJ20: 1.00
A21: 19 | B21: 国泰网信 | D21: 国泰网信 | F21: 北京国泰网信科技有限公司 | J21: S | K21: 54.00 | L21: qichacha | M21: Beijing | BD21: 1.00
A22: 20 | B22: 海基科技 | D22: 海基科技 | F22: 北京海基科技发展有限责任公司 | J22: XS | K22: 8.00 | L22: qichacha | M22: Beijing | Z22: 1.00
A23: 21 | B23: Hexagon | C23: SE | D23: Hexagon | E23: HEXA.B | F23: Hexagon AB | G23: 2021 | H23: 4348926705.00 | I23: 2364879075.00 | J23: L | K23: 22000.00 | L23: hexagon | M23: Foreign | AA23: 1.00
A24: 22 | B24: 航天云网 | D24: 航天云网 | F24: 航天云网科技发展有限责任公司 | J24: S | K24: 99.00 | L24: qichacha | M24: Beijing | T24: 1.00 | U24: 1.00 | AN24: 1.00 | CK24: 1.00 | CL24: 1.00 | CM24: 1.00 | CN24: 1.00 | CO24: 1.00 | CV24: 1.00 | CW24: 1.00 | CX24: 1.00 | CY24: 1.00 | CZ24: 1.00 | DA24: 1.00 | DB24: 1.00 | DE24: 1.00 | DF24: 1.00 | DG24: 1.00 | DH24: 1.00 | DJ24: 1.00 | DK24: 1.00 | DN24: 1.00 | DO24: 1.00 | DP24: 1.00
A25: 23 | B25: 和利时 | C25: US | D25: 和利时 | E25: HOLI | F25: 和利时科技集团有限公司 | G25: 2021 | H25: 10365469659.90 | I25: 4857504838.20 | J25: S | K25: 63.00 | L25: hollysys | M25: Beijing | Q25: 1.00 | AI25: 1.00 | AJ25: 1.00 | AK25: 1.00 | AL25: 1.00 | BJ25: 1.00 | DA25: 1.00 | DN25: 1.00 | DO25: 1.00 | DP25: 1.00
A26: 24 | B26: 华大电子 | C26: HK | D26: 华大电子 | E26: 85 | F26: 北京中电华大电子设计有限责任公司 | G26: 2021 | H26: 2486434448.00 | I26: 1471783580.80 | J26: M | K26: 272.00 | L26: hkexnews | M26: Beijing | P26: 1.00
A27: 25 | B27: 华大九天 | C27: SZ | D27: 华大九天 | E27: =VLOOKUP($D27,[1]Sheet1!$A$1:$M$5087,2,FALSE) -> 301269.SZ | F27: =VLOOKUP($D27,[1]Sheet1!$A$1:$M$5087,9,FALSE) -> 北京华大九天科技股份有限公司 | G27: 2021 | H27: 1802000000.00 | I27: 579000000.00 | J27: L | K27: 660.00 | L27: qichacha | M27: Beijing | AE27: 1.00
A28: 26 | B28: 寄云科技 | D28: 寄云科技 | F28: 北京寄云科技有限公司 | J28: XS | K28: 2.00 | M28: Beijing | CV28: 1.00 | CW28: 1.00 | CX28: 1.00 | CY28: 1.00 | CZ28: 1.00 | DA28: 1.00 | DB28: 1.00
A29: 27 | B29: 江南天安 | D29: 江南天安 | F29: 北京江南天安科技有限公司 | J29: M | K29: 192.00 | L29: qichacha | M29: Beijing | BT29: 1.00
A30: 28 | B30: 金山云 | C30: HK | D30: 金山云 | E30: 3896 | F30: 北京金山云网络技术有限公司 | G30: 2021 | H30: 19000334000.00 | I30: 4080307000.00 | J30: L | K30: 1315.00 | L30: hkexnews | M30: Beijing | DL30: 1.00
A31: 29 | B31: 京东工业品 | C31: US | D31: 京东集团 | E31: JD | F31: 北京京东数智工业科技有限公司 | G31: 2021 | H31: 496507000000.00 | I31: 951592000000.00 | J31: M | K31: 362.00 | L31: jd | M31: Beijing | AN31: 1.00
A32: 30 | B32: 可信华泰 | D32: 可信华泰 | F32: 北京可信华泰信息技术有限公司 | J32: M | K32: 176.00 | L32: qichacha | M32: Beijing | BI32: 1.00
A33: 31 | B33: 昆仑数据 | D33: 昆仑数据 | F33: 四川昆仑智汇数据科技有限公司 | J33: S | K33: 16.00 | L33: qichacha | M33: Non_Beijing | AK33: 1.00 | DE33: 1.00 | DF33: 1.00 | DG33: 1.00 | DH33: 1.00 | DJ33: 1.00 | DK33: 1.00
A34: 32 | B34: 兰光创新 | D34: 兰光创新 | F34: 北京兰光创新科技有限公司 | J34: S | K34: 96.00 | L34: qichacha | M34: Beijing | V34: 1.00
A35: 33 | B35: 蓝谷信息 | D35: 蓝谷信息 | F35: 北汽蓝谷信息技术有限公司 | J35: S | K35: 87.00 | L35: qichacha | M35: Beijing | CQ35: 1.00 | CR35: 1.00 | CS35: 1.00 | CT35: 1.00
A36: 34 | B36: 力控科技 | D36: 力控科技 | F36: 北京力控元通科技有限公司 | J36: M | K36: 251.00 | L36: qichacha | M36: Beijing | AK36: 1.00
A37: 35 | B37: 凌昊智能 | D37: 凌昊智能 | F37: 北京鲲鹏凌昊智能技术有限公司 | J37: S | K37: 59.00 | L37: qichacha | M37: Beijing | R37: 1.00
A38: 36 | B38: 龙芯中科 | C38: SH | D38: 龙芯中科 | E38: =VLOOKUP($D38,[1]Sheet1!$A$1:$M$5087,2,FALSE) -> 688047.SH | F38: =VLOOKUP($D38,[1]Sheet1!$A$1:$M$5087,9,FALSE) -> 龙芯中科技术股份有限公司 | G38: 2021 | H38: 1989000000.00 | I38: 1201000000.00 | J38: L | K38: 822.00 | L38: qichacha | M38: Beijing | P38: 1.00
A39: 37 | B39: 绿盟 | C39: SZ | D39: 绿盟科技 | E39: =VLOOKUP($D39,[1]Sheet1!$A$1:$M$5087,2,FALSE) -> 300369.SZ | F39: =VLOOKUP($D39,[1]Sheet1!$A$1:$M$5087,9,FALSE) -> 绿盟科技集团股份有限公司 | G39: 2021 | H39: 4765000000.00 | I39: 2609000000.00 | J39: L | K39: 4422.00 | L39: qichacha | M39: Beijing | AY39: 1.00 | BA39: 1.00 | BE39: 1.00 | BL39: 1.00 | BU39: 1.00 | BZ39: 1.00
A40: 38 | B40: 牛刀 | D40: 起步科技 | F40: 北京起步科技股份有限公司 | J40: S | K40: 18.00 | L40: qichacha | M40: Beijing | CK40: 1.00 | CL40: 1.00 | CM40: 1.00 | CN40: 1.00 | CO40: 1.00
A41: 39 | B41: Autodesk | C41: US | D41: Autodesk | E41: ADSK | F41: Autodesk Inc | G41: 2021 | H41: 50085024000.00 | I41: 26080016000.00 | L41: marketwatch | M41: Foreign | AA41: 1.00
A42: 40 | B42: 奇安信 | C42: SH | D42: 奇安信 | E42: =VLOOKUP($D42,[1]Sheet1!$A$1:$M$5087,2,FALSE) -> 688561.SH | F42: =VLOOKUP($D42,[1]Sheet1!$A$1:$M$5087,9,FALSE) -> 奇安信科技集团股份有限公司 | G42: 2021 | H42: 13480000000.00 | I42: 5809000000.00 | J42: L | K42: 9657.00 | L42: qichacha | M42: Beijing | BD42: 1.00 | BH42: 1.00 | BN42: 1.00 | BW42: 1.00
A43: 41 | B43: 启明星辰 | C43: SZ | D43: 启明星辰 | E43: =VLOOKUP($D43,[1]Sheet1!$A$1:$M$5087,2,FALSE) -> 002439.SZ | F43: =VLOOKUP($D43,[1]Sheet1!$A$1:$M$5087,9,FALSE) -> 启明星辰信息技术集团股份有限公司 | G43: 2021 | H43: 8936000000.00 | I43: 4386000000.00 | J43: L | K43: 6587.00 | L43: qichacha | M43: Beijing | AY43: 1.00 | BB43: 1.00 | BL43: 1.00 | BM43: 1.00 | BO43: 1.00 | BP43: 1.00 | BY43: 1.00 | BZ43: 1.00 | CF43: 1.00
A44: 42 | B44: 山大华天 | D44: 山大华天 | F44: 山东山大华天软件有限公司 | J44: M | K44: 510.00 | L44: qichacha | M44: Beijing | Y44: 1.00 | AA44: 1.00 | AB44: 1.00
A45: 43 | B45: 神舟软件 | D45: 神舟软件 | F45: 北京神舟航天软件技术股份有限公司 | G45: 2021 | H45: 3042000000.00 | I45: 1502000000.00 | J45: L | K45: 593.00 | L45: qichacha | M45: Beijing | AC45: 1.00 | AD45: 1.00
A46: 44 | B46: 圣邦微电子 | D46: 圣邦微电子 | F46: 圣邦微电子（北京）股份有限公司 | G46: 2021 | H46: 3049000000.00 | I46: 2238000000.00 | J46: M | K46: 858.00 | L46: qichacha | M46: Beijing | P46: 1.00
A47: 45 | B47: 石化盈科 | D47: 石化盈科 | F47: 石化盈科信息技术有限责任公司 | J47: M | K47: 1500.00 | L47: qichacha | M47: Beijing | AI47: 1.00 | AQ47: 1.00 | AR47: 1.00 | DE47: 1.00 | DF47: 1.00 | DG47: 1.00 | DH47: 1.00 | DJ47: 1.00 | DK47: 1.00
A48: 46 | B48: 适创科技 | D48: 适创科技 | F48: 北京适创科技有限公司 | J48: S | K48: 40.00 | L48: qichacha | M48: Beijing | Z48: 1.00
A49: 47 | B49: 首自信 | D49: 首自信 | F49: 北京首钢自动化信息技术有限公司 | J49: L | K49: 1357.00 | L49: qichacha | M49: Beijing | CK49: 1.00 | CL49: 1.00 | CM49: 1.00 | CN49: 1.00 | CQ49: 1.00 | CR49: 1.00 | CS49: 1.00 | CT49: 1.00 | DA49: 1.00
A50: 48 | B50: 曙光信息 | C50: SH | D50: 曙光信息 | E50: 603019.SH | F50: 曙光信息产业股份有限公司 | G50: 2021 | H50: 26190000000.00 | I50: 11200000000.00 | J50: L | K50: 4103.00 | L50: qichacha | M50: Non_Beijing | U50: 1.00
A51: 49 | B51: 数码大方 | D51: 数码大方 | F51: 北京数码大方科技股份有限公司 | G51: 2017 | H51: 219000000.00 | I51: 122000000.00 | J51: M | K51: 326.00 | L51: qichacha | M51: Beijing | Y51: 1.00 | AB51: 1.00 | AD51: 1.00 | AI51: 1.00 | CQ51: 1.00 | CR51: 1.00 | CS51: 1.00 | CT51: 1.00
A52: 50 | B52: 索为系统 | D52: 索为系统 | F52: 索为技术股份有限公司 | J52: M | K52: 392.00 | L52: qichacha | M52: Non_Beijing | AC52: 1.00
A53: 51 | B53: 天地和兴 | D53: 天地和兴 | F53: 北京天地和兴科技有限公司 | J53: M | K53: 100.00 | L53: qichacha | M53: Beijing | BD53: 1.00
A54: 52 | B54: 天空卫士 | D54: 天空卫士 | F54: 北京天空卫士网络安全技术有限公司 | J54: S | K54: 64.00 | L54: qichacha | M54: Beijing | CC54: 1.00
A55: 53 | B55: 天融信 | C55: SZ | D55: 天融信 | E55: =VLOOKUP($D55,[1]Sheet1!$A$1:$M$5087,2,FALSE) -> 002212.SZ | F55: =VLOOKUP($D55,[1]Sheet1!$A$1:$M$5087,9,FALSE) -> 天融信科技集团股份有限公司 | G55: 2021 | H55: 11600000000.00 | I55: 3352000000.00 | J55: L | K55: 6269.00 | L55: qichacha | M55: Beijing | AZ55: 1.00 | BA55: 1.00 | BB55: 1.00 | BF55: 1.00 | BG55: 1.00 | BN55: 1.00 | BO55: 1.00 | BP55: 1.00 | BQ55: 1.00 | BV55: 1.00 | BZ55: 1.00 | CA55: 1.00 | CD55: 1.00 | CE55: 1.00 | CF55: 1.00
A56: 54 | B56: 网御星云 | D56: 网御星云 | F56: 北京网御星云信息技术有限公司 | J56: L | K56: 1579.00 | L56: qichacha | M56: Beijing | AZ56: 1.00 | BG56: 1.00 | BU56: 1.00
A57: 55 | B57: 威努特 | D57: 威努特 | F57: 北京威努特技术有限公司 | J57: M | K57: 379.00 | L57: qichacha | M57: Beijing | AX57: 1.00 | AY57: 1.00 | AZ57: 1.00 | BD57: 1.00 | BE57: 1.00 | BV57: 1.00
A58: 56 | B58: 芯愿景 | D58: 芯愿景 | F58: 北京芯愿景软件技术股份有限公司 | G58: 2020 | H58: 439000000.00 | I58: 181000000.00 | J58: L | K58: 364.00 | L58: qichacha | M58: Beijing | P58: 1.00 | AE58: 1.00
A59: 57 | B59: 亚控科技 | D59: 亚控科技 | F59: 北京亚控科技发展有限公司 | J59: M | K59: 140.00 | L59: qichacha | M59: Beijing | AK59: 1.00 | DN59: 1.00 | DO59: 1.00 | DP59: 1.00
A60: 58 | B60: 用友 | C60: SH | D60: 用友网络 | E60: =VLOOKUP($D60,[1]Sheet1!$A$1:$M$5087,2,FALSE) -> 600588.SH | F60: =VLOOKUP($D60,[1]Sheet1!$A$1:$M$5087,9,FALSE) -> 用友网络科技股份有限公司 | G60: 2021 | H60: 17330000000.00 | I60: 8932000000.00 | J60: L | K60: 23684.00 | L60: qichacha | M60: Beijing | U60: 1.00 | AD60: 1.00 | AG60: 1.00 | AQ60: 1.00 | AR60: 1.00 | AS60: 1.00 | CQ60: 1.00 | CR60: 1.00 | CS60: 1.00 | CT60: 1.00
A61: 59 | B61: 优特捷 | D61: 优特捷 | F61: 北京优特捷信息技术有限公司 | J61: M | K61: 112.00 | L61: qichacha | M61: Beijing | BH61: 1.00
A62: 60 | B62: 宇动源 | D62: 宇动源 | F62: 北京宇动源科技有限公司 | J62: S | K62: 50.00 | L62: qichacha | M62: Beijing | CK62: 1.00 | CL62: 1.00 | CM62: 1.00 | CN62: 1.00 | CO62: 1.00
A63: 61 | B63: 元年科技 | D63: 元年科技 | F63: 北京元年科技股份有限公司 | G63: 2017 | H63: 629000000.00 | I63: 251000000.00 | J63: L | K63: 334.00 | L63: qichacha | M63: Beijing | AK63: 1.00
A64: 62 | B64: 云道智造 | D64: 云道智造 | F64: 北京云道智造科技有限公司 | J64: S | K64: 86.00 | L64: qichacha | M64: Beijing | Z64: 1.00 | CQ64: 1.00 | CR64: 1.00 | CS64: 1.00 | CT64: 1.00
A65: 63 | B65: 长扬科技 | D65: 长扬科技 | F65: 长扬科技（北京）股份有限公司 | J65: M | K65: 364.00 | L65: qichacha | M65: Beijing | AX65: 1.00 | BG65: 1.00 | BW65: 1.00
A66: 64 | B66: 中电智科 | D66: 中电智科 | F66: 中电智能科技有限公司 | J66: M | K66: 156.00 | L66: qichacha | M66: Beijing | Q66: 1.00
A67: 65 | B67: 中国电信 | C67: SH | D67: 中国电信 | E67: =VLOOKUP($D67,[1]Sheet1!$A$1:$M$5087,2,FALSE) -> 601728.SH | F67: =VLOOKUP($D67,[1]Sheet1!$A$1:$M$5087,9,FALSE) -> 中国电信股份有限公司 | G67: 2021 | H67: 762234000000.00 | I67: 439552000000.00 | J67: L | K67: 278922.00 | L67: qichacha | M67: Beijing | T67: 1.00
A68: 66 | B68: 中国联通 | C68: SH | D68: 中国联通 | E68: =VLOOKUP($D68,[1]Sheet1!$A$1:$M$5087,2,FALSE) -> 600050.SH | F68: =VLOOKUP($D68,[1]Sheet1!$A$1:$M$5087,9,FALSE) -> 中国联合网络通信股份有限公司 | G68: 2021 | H68: 593300000000.00 | I68: 327900000000.00 | J68: L | K68: 242661.00 | L68: qichacha | M68: Beijing | T68: 1.00
A69: 67 | B69: 中国移动 | C69: SH | D69: 中国移动 | E69: =VLOOKUP($D69,[1]Sheet1!$A$1:$M$5087,2,FALSE) -> 600941.SH | F69: 中国移动通信有限公司 | G69: 2021 | H69: 1840000000000.00 | I69: 848258000000.00 | J69: L | K69: 4585.00 | L69: qichacha | M69: Beijing | T69: 1.00
A70: 68 | B70: 中望软件 | C70: SH | D70: 中望软件 | E70: =VLOOKUP($D70,[1]Sheet1!$A$1:$M$5087,2,FALSE) -> 688083.SH | F70: =VLOOKUP($D70,[1]Sheet1!$A$1:$M$5087,9,FALSE) -> 广州中望龙腾软件股份有限公司 | G70: 2021 | H70: 3117000000.00 | I70: 618000000.00 | J70: L | K70: 1687.00 | L70: qichacha | M70: Beijing | Y70: 1.00 | Z70: 1.00 | AA70: 1.00
A71: 69 | B71: 紫光集团 | C71: SZ | D71: 紫光股份 | E71: =VLOOKUP($D71,[1]Sheet1!$A$1:$M$5087,2,FALSE) -> 000938.SZ | F71: =VLOOKUP($D71,[1]Sheet1!$A$1:$M$5087,9,FALSE) -> 紫光股份有限公司 | G71: 2021 | H71: 66430000000.00 | I71: 67640000000.00 | J71: L | K71: 17147.00 | L71: qichacha | M71: Beijing | P71: 1.00
A72: 70 | B72: ABB | C72: US | D72: ABB | E72: ABB | F72: Abb Ltd | G72: 2021 | H72: 252378345120.00 | I72: 1.820936362e+11 | L72: marketwatch | M72: Foreign | AJ72: 1.00 | AL72: 1.00
A73: 71 | B73: Altair | C73: US | D73: Altair | E73: ALTR | F73: Altair Engineering Inc | G73: 2021 | H73: 8003332000.00 | I73: 3661391520.00 | L73: marketwatch | M73: Foreign | Z73: 1.00
A74: 72 | B74: ANSYS | C74: US | D74: ANSYS | E74: ANSS | F74: ANSYS Inc | G74: 2021 | H74: 43511280320.00 | I74: 13118199200.00 | L74: marketwatch | M74: Foreign | Z74: 1.00
A75: 73 | B75: FANUC | C75: JP | D75: FANUC | E75: 6954 | F75: Fanuc Corp | G75: 2021 | H75: 83161023470.00 | I75: 28209355790.00 | L75: fanuc | M75: Foreign | CV75: 1.00 | CW75: 1.00 | CX75: 1.00 | CY75: 1.00 | CZ75: 1.00 | DA75: 1.00 | DB75: 1.00
A76: 74 | B76: HoneyWell | C76: US | D76: HoneyWell | E76: HON | F76: Honeywell International Inc | G76: 2021 | H76: 443553600000.00 | I76: 236582560000.00 | L76: marketwatch | M76: Foreign | AJ76: 1.00 | CV76: 1.00 | CW76: 1.00 | CX76: 1.00 | CY76: 1.00 | CZ76: 1.00 | DA76: 1.00 | DB76: 1.00
A77: 75 | B77: IBM | C77: US | D77: IBM | E77: IBM | F77: International Business Machines Corp | G77: 2021 | H77: 908166880000.00 | I77: 394574880000.00 | L77: marketwatch | M77: Foreign | AM77: 1.00
A78: 76 | B78: MasterCAM | D78: MasterCAM | F78: CNC Software LLC | G78: 2021 | I78: 516000000.00 | L78: zippia | M78: Foreign | AA78: 1.00
A79: 77 | B79: Oracle | C79: US | D79: Oracle | E79: ORCL | F79: Oracle Corp | G79: 2021 | H79: 902016160000.00 | I79: 278495520000.00 | L79: marketwatch | M79: Foreign | AN79: 1.00 | AQ79: 1.00 | AR79: 1.00 | AS79: 1.00
A80: 78 | B80: OutSystems | D80: OutSystems | F80: OutSystems | G80: 2021 | I80: 2004763250.00 | L80: forbes | M80: Foreign | CK80: 1.00 | CL80: 1.00 | CM80: 1.00 | CN80: 1.00 | CO80: 1.00
A81: 79 | B81: PTC | C81: US | D81: PTC | E81: PTC | F81: PTC Inc | G81: 2021 | H81: 31012012800.00 | I81: 12433253920.00 | L81: marketwatch | M81: Foreign | Y81: 1.00 | AB81: 1.00 | AD81: 1.00 | CQ81: 1.00 | CR81: 1.00 | CS81: 1.00 | CT81: 1.00 | CV81: 1.00 | CW81: 1.00 | CX81: 1.00 | CY81: 1.00 | CZ81: 1.00 | DA81: 1.00 | DB81: 1.00 | DE81: 1.00 | DF81: 1.00 | DG81: 1.00 | DH81: 1.00 | DJ81: 1.00 | DK81: 1.00 | DN81: 1.00 | DO81: 1.00 | DP81: 1.00
A82: 80 | B82: Salesforce | C82: US | D82: Salesforce | E82: CRM | F82: Salesforce Inc | G82: 2021 | H82: 456150880000.00 | I82: 146213760000.00 | L82: marketwatch | M82: Foreign | AQ82: 1.00 | AR82: 1.00 | AS82: 1.00 | CK82: 1.00 | CL82: 1.00 | CM82: 1.00 | CN82: 1.00 | CO82: 1.00
A83: 81 | B83: SAP | C83: US | D83: SAP | E83: SAP | F83: SAP SE | G83: 2021 | H83: 489642720000.00 | I83: 191552960000.00 | L83: marketwatch | M83: Foreign | AQ83: 1.00 | AR83: 1.00 | AS83: 1.00 | CQ83: 1.00 | CR83: 1.00 | CS83: 1.00 | CT83: 1.00 | DE83: 1.00 | DF83: 1.00 | DG83: 1.00 | DH83: 1.00 | DJ83: 1.00 | DK83: 1.00
A84: 82 | B84: Uptake | D84: Uptake | F84: Uptake Technologies Inc | G84: 2021 | I84: 67424000.00 | L84: zippia | M84: Foreign | CQ84: 1.00 | CR84: 1.00 | CS84: 1.00 | CT84: 1.00
A85: 83 | B85: Emerson | C85: US | D85: Emerson | E85: EMR | F85: Emerson Electric Co | G85: 2021 | H85: 170039200000.00 | I85: 125443040000.00 | L85: marketwatch | M85: Foreign | AJ85: 1.00
A86: 84 | B86: Bosch | D86: Bosch | F86: Bosch Ltd | G86: 2021 | H86: 780540611500.00 | I86: 570962374000.00 | L86: bosch | M86: Foreign | CQ86: 1.00 | CR86: 1.00 | CS86: 1.00 | CT86: 1.00 | DE86: 1.00 | DF86: 1.00 | DG86: 1.00 | DH86: 1.00 | DJ86: 1.00 | DK86: 1.00 | DN86: 1.00 | DO86: 1.00 | DP86: 1.00
A87: 85 | B87: Dassault | C87: FR | D87: Dassault | E87: DSY | F87: Dassault Systemes SE | G87: 2021 | H87: 1044022266200.00 | I87: 356857702600.00 | L87: dassault | M87: Foreign | Y87: 1.00 | AA87: 1.00 | AB87: 1.00 | AD87: 1.00 | CK87: 1.00 | CL87: 1.00 | CM87: 1.00 | CN87: 1.00 | CO87: 1.00
A88: 86 | B88: Dell EMC | C88: US | D88: Dell | E88: DELL | F88: Dell Inc | G88: 2021 | H88: 849095200000.00 | I88: 596963840000.00 | L88: marketwatch | M88: Foreign | R88: 1.00
A89: 87 | B89: Texas Instruments | C89: US | D89: Texas Instruments | E89: TXN | F89: Texas Instruments Inc | G89: 2021 | H89: 169770880000.00 | I89: 126206720000.00 | L89: marketwatch | M89: Foreign | P89: 1.00
A90: 88 | B90: HPE | C90: US | D90: HPE | E90: HPE | F90: Hewlett Packard Enterprise Co | G90: 2021 | H90: 396969120000.00 | I90: 191711200000.00 | L90: marketwatch | M90: Foreign | R90: 1.00
A91: 89 | B91: Rockwell | C91: US | D91: Rockwell | E91: ROK | F91: Rockwell Automation Inc | G91: 2021 | H91: 75779072000.00 | I91: 48129040000.00 | L91: marketwatch | M91: Foreign | Q91: 1.00 | T91: 1.00 | AI91: 1.00
A92: 90 | B92: Mentor Graphics | D92: Mentor Graphics | F92: Siemens EDA | G92: 2023 | I92: 5346448000.00 | L92: zoominfo | M92: Foreign | AE92: 1.00
A93: 91 | B93: Moxa | D93: Moxa | F93: Moxa Inc | G93: 2023 | I93: 1733760000.00 | K93: 1006.00 | L93: rocketreach | M93: Foreign | T93: 1.00
A94: 92 | B94: Omron | C94: JP | D94: Omron | E94: 6645 | F94: Omron Corp | G94: 2021 | H94: 47620285930.00 | I94: 39038974590.00 | L94: omron | M94: Foreign | AL94: 1.00
A95: 93 | B95: Cadence | C95: US | D95: Cadence | E95: CDNS | F95: Cadence Design Systems Inc | G95: 2021 | H95: 30177737120.00 | I95: 20559118720.00 | L95: marketwatch | M95: Foreign | AE95: 1.00
A96: 94 | B96: Mitsubishi | C96: JP | D96: Mitsubishi | E96: 6503 | F96: Mitsubishi Electric Corp | G96: 2021 | H96: 1121237654040.00 | I96: 883441248760.00 | L96: mitsubishi | M96: Foreign | Q96: 1.00
A97: 95 | B97: Schneider | C97: FR | D97: Schneider | E97: SU | F97: Schneider Electric SE | G97: 2021 | H97: 400516802200.00 | I97: 212237853000.00 | L97: schneider | M97: Foreign | V97: 1.00 | DN97: 1.00 | DO97: 1.00 | DP97: 1.00
A98: 96 | B98: Cisco | C98: US | D98: Cisco | E98: CSCO | F98: Cisco Systems Inc | G98: 2021 | H98: 670779360000.00 | I98: 342747840000.00 | L98: marketwatch | M98: Foreign | T98: 1.00 | V98: 1.00
A99: 97 | B99: General Electric | C99: US | D99: General Electric | E99: GE | F99: General Electric Co | G99: 2021 | H99: 1368253120000.00 | I99: 510317120000.00 | L99: marketwatch | M99: Foreign | V99: 1.00 | AI99: 1.00 | AK99: 1.00 | CV99: 1.00 | CW99: 1.00 | CX99: 1.00 | CY99: 1.00 | CZ99: 1.00 | DA99: 1.00 | DB99: 1.00
A100: 98 | B100: Microsoft Azure | C100: US | D100: Microsoft | E100: MSFT | F100: Microsoft Co | G100: 2021 | H100: 2296399520000.00 | I100: 1156445440000.00 | L100: marketwatch | M100: Foreign | DL100: 1.00
A101: 99 | B101: Siemens | C101: XE | D101: Siemens | E101: SIE | F101: Siemens AG | G101: 2021 | H101: 1023352847200.00 | I101: 457186989000.00 | L101: siemens | M101: Foreign | Q101: 1.00 | T101: 1.00 | Y101: 1.00 | Z101: 1.00 | AA101: 1.00 | AB101: 1.00 | AC101: 1.00 | AD101: 1.00 | AI101: 1.00 | AK101: 1.00 | AL101: 1.00 | CK101: 1.00 | CL101: 1.00 | CM101: 1.00 | CN101: 1.00 | CO101: 1.00 | CQ101: 1.00 | CR101: 1.00 | CS101: 1.00 | CT101: 1.00 | CV101: 1.00 | CW101: 1.00 | CX101: 1.00 | CY101: 1.00 | CZ101: 1.00 | DA101: 1.00 | DB101: 1.00 | DE101: 1.00 | DF101: 1.00 | DG101: 1.00 | DH101: 1.00 | DJ101: 1.00 | DK101: 1.00 | DN101: 1.00 | DO101: 1.00 | DP101: 1.00
A102: 100 | B102: Synopsys | C102: US | D102: Synopsys | E102: SNPS | F102: Synopsys Inc | G102: 2021 | H102: 60215548800.00 | I102: 28896082560.00 | L102: marketwatch | M102: Foreign | AE102: 1.00
A103: 101 | B103: Analog Devices | C103: US | D103: Analog Devices | E103: ADI | F103: Analog Devices Inc | G103: 2021 | H103: 359975848480.00 | I103: 50349807680.00 | L103: marketwatch | M103: Foreign | P103: 1.00
A104: 102 | B104: Amazon AWS | C104: US | D104: Amazon | E104: AMZN | F104: Amazon.com Inc | G104: 2021 | H104: 2893377120000.00 | I104: 3232375360000.00 | L104: marketwatch | M104: Foreign | DE104: 1.00 | DF104: 1.00 | DG104: 1.00 | DH104: 1.00 | DJ104: 1.00 | DK104: 1.00 | DL104: 1.00
A105: 103 | B105: STMicroelectronics | C105: US | D105: STMicroelectronics | E105: STM | F105: STMicroelectronics NV | G105: 2021 | H105: 94016180090.40 | I105: 7.427842393e+10 | L105: marketwatch | M105: Foreign | P105: 1.00
A106: 104 | B106: Infineon | C106: XE | D106: Infineon | E106: IFX | F106: Infineon Technologies AG | G106: 2021 | H106: 171332228400.00 | I106: 81209156000.00 | K106: 50288.00 | L106: infineon | M106: Foreign | P106: 1.00
A107: 105 | B107: Intel | C107: US | D107: Intel | E107: INTC | F107: Intel Co | G107: 2021 | H107: 1158633280000.00 | I107: 543685120000.00 | L107: marketwatch | M107: Foreign | P107: 1.00
A108: 106 | B108: 阿里巴巴 | C108: US | D108: 阿里巴巴 | E108: BABA | F108: Alibaba Group Holding Ltd | G108: 2021 | H108: 1690218000000.00 | I108: 717289000000.00 | L108: alibaba | M108: Non_Beijing | R108: 1.00 | T108: 1.00 | AN108: 1.00 | CK108: 1.00 | CL108: 1.00 | CM108: 1.00 | CN108: 1.00 | CO108: 1.00 | CV108: 1.00 | CW108: 1.00 | CX108: 1.00 | CY108: 1.00 | CZ108: 1.00 | DA108: 1.00 | DB108: 1.00 | DL108: 1.00
A109: 107 | B109: 安恒信息 | C109: SH | D109: 安恒信息 | E109: =VLOOKUP($D109,[1]Sheet1!$A$1:$M$5087,2,FALSE) -> 688023.SH | F109: =VLOOKUP($D109,[1]Sheet1!$A$1:$M$5087,9,FALSE) -> 杭州安恒信息技术股份有限公司 | G109: 2021 | H109: 4852000000.00 | I109: 1820000000.00 | J109: L | K109: 3611.00 | L109: qichacha | M109: Non_Beijing | BN109: 1.00
A110: 108 | B110: 百度 | C110: HK | D110: 百度 | E110: 9888 | F110: Baidu Inc | G110: 2021 | H110: 380034000000.00 | I110: 124493000000.00 | L110: hkexnews | M110: Non_Beijing | CV110: 1.00 | CW110: 1.00 | CX110: 1.00 | CY110: 1.00 | CZ110: 1.00 | DA110: 1.00 | DB110: 1.00 | DL110: 1.00
A111: 109 | B111: 宝信软件 | C111: SH | D111: 宝信软件 | E111: =VLOOKUP($D111,[1]Sheet1!$A$1:$M$5087,2,FALSE) -> 600845.SH | F111: =VLOOKUP($D111,[1]Sheet1!$A$1:$M$5087,9,FALSE) -> 上海宝信软件股份有限公司 | G111: 2021 | H111: 17860000000.00 | I111: 11760000000.00 | J111: L | K111: 5258.00 | L111: qichacha | M111: Non_Beijing | AI111: 1.00
A112: 110 | B112: 晨科软件 | D112: 晨科软件 | F112: 杭州晨科软件技术有限公司 | J112: S | K112: 87.00 | L112: qichacha | M112: Non_Beijing | AM112: 1.00
A113: 111 | B113: 鼎捷软件 | C113: SZ | D113: 鼎捷软件 | E113: =VLOOKUP($D113,[1]Sheet1!$A$1:$M$5087,2,FALSE) -> 300378.SZ | F113: =VLOOKUP($D113,[1]Sheet1!$A$1:$M$5087,9,FALSE) -> 鼎捷软件股份有限公司 | G113: 2021 | H113: 2638000000.00 | I113: 1788000000.00 | J113: L | K113: 4274.00 | L113: qichacha | M113: Non_Beijing | AD113: 1.00 | AI113: 1.00 | AQ113: 1.00
A114: 112 | B114: 东华测试 | C114: SZ | D114: 东华测试 | E114: =VLOOKUP($D114,[1]Sheet1!$A$1:$M$5087,2,FALSE) -> 300354.SZ | F114: =VLOOKUP($D114,[1]Sheet1!$A$1:$M$5087,9,FALSE) -> 江苏东华测试技术股份有限公司 | G114: 2021 | H114: 545000000.00 | I114: 257000000.00 | J114: L | K114: 588.00 | L114: qichacha | M114: Non_Beijing | AO114: 1.00
A115: 113 | B115: 飞腾信息 | D115: 飞腾信息 | F115: 飞腾信息技术有限公司 | J115: M | K115: 206.00 | L115: qichacha | M115: Non_Beijing | P115: 1.00
A116: 114 | B116: 富勒科技 | D116: 富勒科技 | F116: 上海富勒信息科技有限公司 | J116: M | K116: 100.00 | L116: qichacha | M116: Non_Beijing | AU116: 1.00
A117: 115 | B117: 富士康 | D117: 富士康 | F117: 富士康工业互联网股份有限公司 | G117: 2021 | H117: 266600000000.00 | I117: 439600000000.00 | J117: L | K117: 191970.00 | L117: qichacha | M117: Non_Beijing | R117: 1.00 | DE117: 1.00 | DF117: 1.00 | DG117: 1.00 | DH117: 1.00 | DJ117: 1.00 | DK117: 1.00
A118: 116 | B118: 概伦电子 | C118: SH | D118: 概伦电子 | E118: =VLOOKUP($D118,[1]Sheet1!$A$1:$M$5087,2,FALSE) -> 688206.SH | F118: =VLOOKUP($D118,[1]Sheet1!$A$1:$M$5087,9,FALSE) -> 上海概伦电子股份有限公司 | G118: 2021 | H118: 2342000000.00 | I118: 193000000.00 | J118: M | K118: 294.00 | L118: qichacha | M118: Non_Beijing | AE118: 1.00
A119: 117 | B119: 格创东智 | D119: 格创东智 | F119: 格创东智科技有限公司 | J119: XS | K119: 2.00 | M119: Non_Beijing | CK119: 1.00 | CL119: 1.00 | CM119: 1.00 | CN119: 1.00 | CO119: 1.00 | DE119: 1.00 | DF119: 1.00 | DG119: 1.00 | DH119: 1.00 | DJ119: 1.00 | DK119: 1.00
A120: 118 | B120: 工邦邦 | D120: 工邦邦 | F120: 上海工邦邦工业技术有限公司 | J120: S | K120: 70.00 | L120: qichacha | M120: Non_Beijing | AN120: 1.00
A121: 119 | B121: 广联达 | C121: SZ | D121: 广联达 | E121: =VLOOKUP($D121,[1]Sheet1!$A$1:$M$5087,2,FALSE) -> 002410.SZ | F121: =VLOOKUP($D121,[1]Sheet1!$A$1:$M$5087,9,FALSE) -> 广联达科技股份有限公司 | G121: 2021 | H121: 10070000000.00 | I121: 5619000000.00 | J121: L | K121: 9486.00 | L121: qichacha | M121: Non_Beijing | Y121: 1.00
A122: 120 | B122: 广州数控 | D122: 广州数控 | F122: 广州数控设备有限公司 | J122: M | K122: 1985.00 | L122: qichacha | M122: Non_Beijing | V122: 1.00
A123: 121 | B123: 广州智臣 | D123: 广州智臣 | F123: 广州智臣信息科技有限公司 | J123: S | K123: 43.00 | L123: qichacha | M123: Non_Beijing | BG123: 1.00
A124: 122 | B124: 国民技术 | C124: SZ | D124: 国民技术 | E124: =VLOOKUP($D124,[1]Sheet1!$A$1:$M$5087,2,FALSE) -> 300077.SZ | F124: =VLOOKUP($D124,[1]Sheet1!$A$1:$M$5087,9,FALSE) -> 国民技术股份有限公司 | G124: 2021 | H124: 2668000000.00 | I124: 1018000000.00 | J124: L | K124: 1060.00 | L124: qichacha | M124: Non_Beijing | BI124: 1.00
A125: 123 | B125: 海得控制 | C125: SZ | D125: 海得控制 | E125: =VLOOKUP($D125,[1]Sheet1!$A$1:$M$5087,2,FALSE) -> 002184.SZ | F125: =VLOOKUP($D125,[1]Sheet1!$A$1:$M$5087,9,FALSE) -> 上海海得控制系统股份有限公司 | G125: 2021 | H125: 2576000000.00 | I125: 2491000000.00 | J125: L | K125: 1128.00 | L125: qichacha | M125: Non_Beijing | Q125: 1.00
A126: 124 | B126: 海尔 | C126: SH | D126: 海尔智家 | E126: =VLOOKUP($D126,[1]Sheet1!$A$1:$M$5087,2,FALSE) -> 600690.SH | F126: =VLOOKUP($D126,[1]Sheet1!$A$1:$M$5087,9,FALSE) -> 海尔智家股份有限公司 | G126: 2021 | H126: 217700000000.00 | I126: 227600000000.00 | J126: L | K126: 104874.00 | L126: qichacha | M126: Non_Beijing | T126: 1.00 | DN126: 1.00 | DO126: 1.00 | DP126: 1.00
A127: 125 | B127: 华数机器人 | D127: 华数机器人 | F127: 重庆华数机器人有限公司 | J127: M | K127: 102.00 | L127: qichacha | M127: Non_Beijing | V127: 1.00
A128: 126 | B128: 华为 | D128: 华为 | F128: 华为技术有限公司 | G128: 2021 | I128: 636807000000.00 | J128: L | K128: 10000.00 | L128: qichacha | M128: Non_Beijing | R128: 1.00 | T128: 1.00 | V128: 1.00 | AX128: 1.00 | AY128: 1.00 | BF128: 1.00 | BM128: 1.00 | BQ128: 1.00 | BY128: 1.00 | CO128: 1.00 | CV128: 1.00 | CW128: 1.00 | CX128: 1.00 | CY128: 1.00 | CZ128: 1.00 | DA128: 1.00 | DB128: 1.00 | DL128: 1.00 | DN128: 1.00 | DO128: 1.00 | DP128: 1.00
A129: 127 | B129: 华为海思 | D129: 华为海思 | F129: 深圳市海思半导体有限公司 | G129: 2021 | I129: 10320000000.00 | J129: M | K129: 7000.00 | L129: qichacha | M129: Non_Beijing | P129: 1.00 | R129: 1.00
A130: 128 | B130: 华伍股份 | C130: SZ | D130: 华伍股份 | E130: =VLOOKUP($D130,[1]Sheet1!$A$1:$M$5087,2,FALSE) -> 300095.SZ | F130: =VLOOKUP($D130,[1]Sheet1!$A$1:$M$5087,9,FALSE) -> 江西华伍制动器股份有限公司 | G130: 2021 | H130: 3800000000.00 | I130: 1435000000.00 | J130: L | K130: 1915.00 | L130: qichacha | M130: Non_Beijing | Q130: 1.00
A131: 129 | B131: 华中数控 | C131: SZ | D131: 华中数控 | E131: =VLOOKUP($D131,[1]Sheet1!$A$1:$M$5087,2,FALSE) -> 300161.SZ | F131: =VLOOKUP($D131,[1]Sheet1!$A$1:$M$5087,9,FALSE) -> 武汉华中数控股份有限公司 | G131: 2021 | H131: 3399000000.00 | I131: 1634000000.00 | J131: L | K131: 2584.00 | L131: qichacha | M131: Non_Beijing | Q131: 1.00 | V131: 1.00
A132: 130 | B132: 金蝶 | C132: HK | D132: 金蝶 | E132: 268 | F132: Kingdee International Software Group Co Ltd | G132: 2021 | H132: 11087132000.00 | I132: 4174147000.00 | L132: hkexnews | M132: Non_Beijing | AG132: 1.00 | AQ132: 1.00 | AR132: 1.00 | AS132: 1.00 | AU132: 1.00
A133: 131 | B133: 九物互联 | D133: 九物互联 | F133: 上海九物互联网科技有限公司 | J133: S | K133: 9.00 | L133: qichacha | M133: Non_Beijing | CK133: 1.00 | CL133: 1.00 | CM133: 1.00 | CN133: 1.00 | CO133: 1.00
A134: 132 | B134: 科远智慧 | C134: SZ | D134: 科远智慧 | E134: =VLOOKUP($D134,[1]Sheet1!$A$1:$M$5087,2,FALSE) -> 002380.SZ | F134: =VLOOKUP($D134,[1]Sheet1!$A$1:$M$5087,9,FALSE) -> 南京科远智慧科技集团股份有限公司 | G134: 2021 | H134: 3337000000.00 | I134: 1140000000.00 | J134: L | K134: 1888.00 | L134: qichacha | M134: Non_Beijing | AJ134: 1.00
A135: 133 | B135: 蓝盾股份 | C135: SZ | D135: *ST蓝盾 | E135: =VLOOKUP($D135,[1]Sheet1!$A$1:$M$5087,2,FALSE) -> 300297.SZ | F135: =VLOOKUP($D135,[1]Sheet1!$A$1:$M$5087,9,FALSE) -> 蓝盾信息安全技术股份有限公司 | G135: 2021 | H135: 6249000000.00 | I135: 287000000.00 | J135: L | K135: 449.00 | L135: qichacha | M135: Non_Beijing | AZ135: 1.00 | BS135: 1.00
A136: 134 | B136: 朗坤智慧 | D136: 朗坤智慧 | F136: 朗坤智慧科技股份有限公司 | G136: 2019 | H136: 446000000.00 | I136: 302000000.00 | J136: L | K136: 611.00 | L136: qichacha | M136: Non_Beijing | AM136: 1.00
A137: 135 | B137: 浪潮 | C137: SH | D137: 浪潮软件 | E137: =VLOOKUP($D137,[1]Sheet1!$A$1:$M$5087,2,FALSE) -> 600756.SH | F137: =VLOOKUP($D137,[1]Sheet1!$A$1:$M$5087,9,FALSE) -> 浪潮软件股份有限公司 | G137: 2021 | H137: 4155000000.00 | I137: 1830000000.00 | J137: L | K137: 1446.00 | L137: qichacha | M137: Non_Beijing | R137: 1.00 | AG137: 1.00 | AQ137: 1.00 | CV137: 1.00 | CW137: 1.00 | CX137: 1.00 | CY137: 1.00 | CZ137: 1.00 | DA137: 1.00 | DB137: 1.00 | DL137: 1.00
A138: 136 | B138: 美的 | C138: SZ | D138: 美的集团 | E138: =VLOOKUP($D138,[1]Sheet1!$A$1:$M$5087,2,FALSE) -> 000333.SZ | F138: =VLOOKUP($D138,[1]Sheet1!$A$1:$M$5087,9,FALSE) -> 美的集团股份有限公司 | G138: 2021 | H138: 387900000000.00 | I138: 343400000000.00 | J138: L | K138: 165799.00 | L138: qichacha | M138: Non_Beijing | T138: 1.00
A139: 137 | B139: 美林数据 | C139: NQ | D139: 美林数据 | E139: 831546 | F139: 美林数据技术股份有限公司 | H139: 381000000.00 | I139: 279000000.00 | J139: M | K139: 777.00 | L139: qichacha | M139: Non_Beijing | DE139: 1.00 | DF139: 1.00 | DG139: 1.00 | DH139: 1.00 | DJ139: 1.00 | DK139: 1.00
A140: 138 | B140: 启明信息 | C140: SZ | D140: 启明信息 | E140: =VLOOKUP($D140,[1]Sheet1!$A$1:$M$5087,2,FALSE) -> 002232.SZ | F140: =VLOOKUP($D140,[1]Sheet1!$A$1:$M$5087,9,FALSE) -> 启明信息技术股份有限公司 | G140: 2021 | H140: 2120000000.00 | I140: 1051000000.00 | J140: L | K140: 1525.00 | L140: qichacha | M140: Non_Beijing | AC140: 1.00
A141: 139 | B141: 容知日新 | C141: SH | D141: 容知日新 | E141: =VLOOKUP($D141,[1]Sheet1!$A$1:$M$5087,2,FALSE) -> 688768.SH | F141: =VLOOKUP($D141,[1]Sheet1!$A$1:$M$5087,9,FALSE) -> 安徽容知日新科技股份有限公司 | G141: 2021 | H141: 772000000.00 | I141: 397000000.00 | J141: L | K141: 515.00 | L141: qichacha | M141: Non_Beijing | AO141: 1.00
A142: 140 | B142: 山石网科 | C142: SH | D142: 山石网科 | E142: =VLOOKUP($D142,[1]Sheet1!$A$1:$M$5087,2,FALSE) -> 688030.SH | F142: =VLOOKUP($D142,[1]Sheet1!$A$1:$M$5087,9,FALSE) -> 山石网科通信技术股份有限公司 | G142: 2021 | H142: 1944000000.00 | I142: 1027000000.00 | J142: L | K142: 1808.00 | L142: qichacha | M142: Non_Beijing | AX142: 1.00 | BA142: 1.00 | BB142: 1.00 | BY142: 1.00 | CA142: 1.00 | CB142: 1.00 | CG142: 1.00
A143: 141 | B143: 上海新华控制 | D143: 上海新华控制 | F143: 上海新华控制技术集团科技有限公司 | J143: M | K143: 196.00 | L143: qichacha | M143: Non_Beijing | AJ143: 1.00
A144: 142 | B144: 深信服 | C144: SZ | D144: 深信服 | E144: =VLOOKUP($D144,[1]Sheet1!$A$1:$M$5087,2,FALSE) -> 300454.SZ | F144: =VLOOKUP($D144,[1]Sheet1!$A$1:$M$5087,9,FALSE) -> 深信服科技股份有限公司 | G144: 2021 | H144: 10950000000.00 | I144: 6805000000.00 | J144: L | K144: 8897.00 | L144: qichacha | M144: Non_Beijing | AX144: 1.00 | BF144: 1.00 | BG144: 1.00 | BQ144: 1.00
A145: 143 | B145: 沈阳自动化研究所 | D145: 沈阳自动化研究所 | F145: 中国科学院沈阳自动化研究所 | J145: L | K145: 1000.00 | L145: qichacha | M145: Non_Beijing | CK145: 1.00 | CL145: 1.00 | CM145: 1.00 | CN145: 1.00 | CO145: 1.00
A146: 144 | B146: 树根互联 | D146: 树根互联 | F146: 树根互联股份有限公司 | G146: 2021 | H146: 1130000000.00 | I146: 517000000.00 | J146: L | K146: 525.00 | L146: qichacha | M146: Non_Beijing | CQ146: 1.00 | CR146: 1.00 | CS146: 1.00 | CT146: 1.00
A147: 145 | B147: 思普软件 | D147: 思普软件 | F147: 思普软件股份有限公司 | J147: S | K147: 3.00 | M147: Non_Beijing | AB147: 1.00
A148: 146 | B148: 苏州浩辰 | D148: 苏州浩辰 | F148: 苏州浩辰软件股份有限公司 | G148: 2021 | H148: 297000000.00 | I148: 236000000.00 | J148: M | K148: 148.00 | L148: qichacha | M148: Non_Beijing | Y148: 1.00
A149: 147 | B149: 拓邦股份 | C149: SZ | D149: 拓邦股份 | E149: =VLOOKUP($D149,[1]Sheet1!$A$1:$M$5087,2,FALSE) -> 002139.SZ | F149: =VLOOKUP($D149,[1]Sheet1!$A$1:$M$5087,9,FALSE) -> 深圳拓邦股份有限公司 | G149: 2021 | H149: 9607000000.00 | I149: 7767000000.00 | J149: L | K149: 8445.00 | L149: qichacha | M149: Non_Beijing | Q149: 1.00
A150: 148 | B150: 腾讯 | C150: HK | D150: 腾讯 | E150: 700 | F150: Tencent Holdings Ltd | G150: 2021 | H150: 1612364000000.00 | I150: 560118000000.00 | L150: hkexnews | M150: Non_Beijing | CK150: 1.00 | CL150: 1.00 | CM150: 1.00 | CN150: 1.00 | CO150: 1.00 | CV150: 1.00 | CW150: 1.00 | CX150: 1.00 | CY150: 1.00 | CZ150: 1.00 | DA150: 1.00 | DB150: 1.00 | DL150: 1.00
A151: 149 | B151: 天泽智云 | D151: 天泽智云 | F151: 北京天泽智云科技有限公司 | J151: S | K151: 58.00 | L151: qichacha | M151: Beijing | CQ151: 1.00 | CR151: 1.00 | CS151: 1.00 | CT151: 1.00
A152: 150 | B152: 唯捷创芯 | C152: SH | D152: 唯捷创芯 | E152: =VLOOKUP($D152,[1]Sheet1!$A$1:$M$5087,2,FALSE) -> 688153.SH | F152: =VLOOKUP($D152,[1]Sheet1!$A$1:$M$5087,9,FALSE) -> 唯捷创芯(天津)电子技术股份有限公司 | G152: 2021 | H152: 2039000000.00 | I152: 3509000000.00 | J152: L | K152: 322.00 | L152: qichacha | M152: Non_Beijing | P152: 1.00
A153: 151 | B153: 唯智信息 | D153: 唯智信息 | F153: 唯智信息技术（上海）股份有限公司 | G153: 2017 | H153: 156000000.00 | I153: 45453200.00 | J153: S | K153: 144.00 | L153: qichacha | M153: Non_Beijing | AU153: 1.00
A154: 152 | B154: 卫士通 | C154: SZ | D154: 电科网安 | E154: =VLOOKUP($D154,[1]Sheet1!$A$1:$M$5087,2,FALSE) -> 002268.SZ | F154: =VLOOKUP($D154,[1]Sheet1!$A$1:$M$5087,9,FALSE) -> 中电科网络安全科技股份有限公司 | G154: 2021 | H154: 7142000000.00 | I154: 2789000000.00 | J154: L | K154: 2567.00 | L154: qichacha | M154: Non_Beijing | BS154: 1.00
A155: 153 | B155: 武汉开目 | D155: 武汉开目 | F155: 武汉开目信息技术股份有限公司 | J155: M | K155: 140.00 | L155: qichacha | M155: Non_Beijing | Y155: 1.00 | AB155: 1.00
A156: 154 | B156: 西格数据 | D156: 西格数据 | F156: 江苏西格数据科技有限公司 | J156: S | K156: 141.00 | L156: qichacha | M156: Non_Beijing | DE156: 1.00 | DF156: 1.00 | DG156: 1.00 | DH156: 1.00 | DJ156: 1.00 | DK156: 1.00
A157: 155 | B157: 小米 | C157: HK | D157: 小米 | E157: 1810 | F157: Xiaomi Co | G157: 2021 | H157: 292891870000.00 | I157: 328309145000.00 | L157: xiaomi | M157: Non_Beijing | DN157: 1.00 | DO157: 1.00 | DP157: 1.00
A158: 156 | B158: 芯禾科技 | D158: 芯禾科技 | F158: 苏州芯禾电子科技有限公司 | J158: XS | K158: 2.00 | L158: qichacha | M158: Non_Beijing | AE158: 1.00
A159: 157 | B159: 新华三 | D159: 新华三 | F159: 新华三技术有限公司 | J159: L | K159: 5672.00 | L159: qichacha | M159: Non_Beijing | AX159: 1.00 | AY159: 1.00
A160: 158 | B160: 信大捷安 | D160: 信大捷安 | F160: 郑州信大捷安信息技术股份有限公司 | G160: 2018 | H160: 425000000.00 | I160: 307000000.00 | J160: L | K160: 513.00 | L160: qichacha | M160: Non_Beijing | BS160: 1.00
A161: 159 | B161: 徐工集团 | C161: SZ | D161: 徐工机械 | E161: =VLOOKUP($D161,[1]Sheet1!$A$1:$M$5087,2,FALSE) -> 000425.SZ | F161: =VLOOKUP($D161,[1]Sheet1!$A$1:$M$5087,9,FALSE) -> 徐工集团工程机械股份有限公司 | G161: 2021 | H161: 167000000000.00 | I161: 84330000000.00 | J161: L | K161: 15483.00 | L161: qichacha | M161: Non_Beijing | CQ161: 1.00 | CR161: 1.00 | CS161: 1.00 | CT161: 1.00
A162: 160 | B162: 亚信科技 | C162: HK | D162: 亚信科技 | E162: 1675 | F162: 亚信科技有限公司 | G162: 2021 | H162: 9505464000.00 | I162: 6894667000.00 | L162: hkexnews | M162: Non_Beijing | AZ162: 1.00
A163: 161 | B163: 研华科技 | D163: 研华科技 | F163: 研华科技（中国）有限公司 | J163: L | K163: 2674.00 | L163: qichacha | M163: Non_Beijing | DN163: 1.00 | DO163: 1.00 | DP163: 1.00
A164: 162 | B164: 壹进制 | D164: 壹进制 | F164: 南京壹进制信息科技有限公司 | I164: 58807600.00 | J164: M | K164: 215.00 | L164: qichacha | M164: Non_Beijing | CD164: 1.00 | CE164: 1.00
A165: 163 | B165: 优也科技 | D165: 优也科技 | F165: 上海优也信息科技有限公司 | J165: S | K165: 64.00 | L165: qichacha | M165: Non_Beijing | DE165: 1.00 | DF165: 1.00 | DG165: 1.00 | DH165: 1.00 | DJ165: 1.00 | DK165: 1.00
A166: 164 | B166: 震坤行 | D166: 震坤行 | F166: 震坤行工业超市（上海）有限公司 | J166: L | K166: 2284.00 | L166: qichacha | M166: Non_Beijing | AN166: 1.00
A167: 165 | B167: 智能云科 | D167: 智能云科 | F167: 智能云科信息科技有限公司 | J167: S | K167: 60.00 | L167: qichacha | M167: Non_Beijing | CQ167: 1.00 | CR167: 1.00 | CS167: 1.00 | CT167: 1.00
A168: 166 | B168: 中国电子科技网络信息安全 | D168: 中国电子科技网络信息安全 | F168: 中国电子科技网络信息安全有限公司 | J168: M | K168: 292.00 | L168: qichacha | M168: Non_Beijing | V168: 1.00
A169: 167 | B169: 中环股份 | C169: SZ | D169: TCL中环 | E169: =VLOOKUP($D169,[1]Sheet1!$A$1:$M$5087,2,FALSE) -> 002129.SZ | F169: =VLOOKUP($D169,[1]Sheet1!$A$1:$M$5087,9,FALSE) -> TCL中环新能源科技股份有限公司 | G169: 2021 | H169: 78220000000.00 | I169: 41100000000.00 | J169: L | K169: 13371.00 | L169: qichacha | M169: Non_Beijing | P169: 1.00
A170: 168 | B170: 中控技术 | C170: SH | D170: 中控技术 | E170: =VLOOKUP($D170,[1]Sheet1!$A$1:$M$5087,2,FALSE) -> 688777.SH | F170: =VLOOKUP($D170,[1]Sheet1!$A$1:$M$5087,9,FALSE) -> 浙江中控技术股份有限公司 | G170: 2021 | H170: 10350000000.00 | I170: 4519000000.00 | J170: L | K170: 5057.00 | L170: qichacha | M170: Non_Beijing | Q170: 1.00 | AI170: 1.00 | AJ170: 1.00 | AL170: 1.00 | DN170: 1.00 | DO170: 1.00 | DP170: 1.00
A171: 169 | B171: 中芯国际 | C171: SH | D171: 中芯国际 | E171: =VLOOKUP($D171,[1]Sheet1!$A$1:$M$5087,2,FALSE) -> 688981.SH | F171: 中芯国际集成电路制造（上海）有限公司 | G171: 2021 | H171: 230233000000.00 | I171: 34704000000.00 | J171: L | K171: 5173.00 | L171: qichacha | M171: Non_Beijing | P171: 1.00
A172: 170 | B172: Pseudo1 | D172: Pseudo1 | F172: Pseudo1 | I172: 100000000.00 | N172: 1.00

Sheet Firm_ori
A1: Code | B1: Name | C1: Stock | D1: Stock_Name | E1: Stock_Code | F1: Chinese_Name | G1: Assets | H1: Revenue | I1: Size | J1: Num_Employ | K1: Type_Region | L1: 1 | M1: 1.1 | N1: 1.1.1 | O1: 1.1.2 | P1: 1.1.3 | Q1: 1.2 | R1: 1.2.1 | S1: 1.2.2 | T1: 1.2.3 | U1: 1.3 | V1: 1.3.1 | W1: 1.3.1.1 | X1: 1.3.1.2 | Y1: 1.3.1.3 | Z1: 1.3.1.4 | AA1: 1.3.1.5 | AB1: 1.3.1.6 | AC1: 1.3.1.7 | AD1: 1.3.2 | AE1: 1.3.2.1 | AF1: 1.3.3 | AG1: 1.3.3.1 | AH1: 1.3.3.2 | AI1: 1.3.3.3 | AJ1: 1.3.3.4 | AK1: 1.3.3.5 | AL1: 1.3.3.6 | AM1: 1.3.3.7 | AN1: 1.3.4 | AO1: 1.3.4.1 | AP1: 1.3.4.2 | AQ1: 1.3.4.3 | AR1: 1.3.5 | AS1: 1.3.5.1 | AT1: 1.4 | AU1: 1.4.1 | AV1: 1.4.1.1 | AW1: 1.4.1.2 | AX1: 1.4.1.3 | AY1: 1.4.1.4 | AZ1: 1.4.1.5 | BA1: 1.4.2 | BB1: 1.4.2.1 | BC1: 1.4.2.2 | BD1: 1.4.2.3 | BE1: 1.4.2.4 | BF1: 1.4.2.5 | BG1: 1.4.2.6 | BH1: 1.4.2.7 | BI1: 1.4.3 | BJ1: 1.4.3.1 | BK1: 1.4.3.2 | BL1: 1.4.3.3 | BM1: 1.4.3.4 | BN1: 1.4.3.5 | BO1: 1.4.3.6 | BP1: 1.4.4 | BQ1: 1.4.4.1 | BR1: 1.4.4.2 | BS1: 1.4.4.3 | BT1: 1.4.4.4 | BU1: 1.4.4.5 | BV1: 1.4.5 | BW1: 1.4.5.1 | BX1: 1.4.5.2 | BY1: 1.4.5.3 | BZ1: 1.4.5.4 | CA1: 1.4.5.5 | CB1: 1.4.5.6 | CC1: 1.4.5.7 | CD1: 1.4.5.8 | CE1: 1.4.5.9 | CF1: 2 | CG1: 2.1 | CH1: 2.1.1 | CI1: 2.1.1.1 | CJ1: 2.1.1.2 | CK1: 2.1.1.3 | CL1: 2.1.1.4 | CM1: 2.1.1.5 | CN1: 2.1.2 | CO1: 2.1.2.1 | CP1: 2.1.2.2 | CQ1: 2.1.2.3 | CR1: 2.1.2.4 | CS1: 2.1.3 | CT1: 2.1.3.1 | CU1: 2.1.3.2 | CV1: 2.1.3.3 | CW1: 2.1.3.4 | CX1: 2.1.3.5 | CY1: 2.1.3.6 | CZ1: 2.1.3.7 | DA1: 2.1.4 | DB1: 2.1.4.1 | DC1: 2.1.4.1.1 | DD1: 2.1.4.1.2 | DE1: 2.1.4.1.3 | DF1: 2.1.4.1.4 | DG1: 2.1.4.2 | DH1: 2.1.4.2.1 | DI1: 2.1.4.2.2 | DJ1: 2.2 | DK1: 2.3 | DL1: 2.3.1 | DM1: 2.3.2 | DN1: 2.3.3
A2: 0 | B2: 360科技 | C2: SH | D2: 三六零 | E2: =VLOOKUP($D2,[1]Sheet1!$A$1:$M$5087,2,FALSE) -> 601360.SH | F2: =VLOOKUP($D2,[1]Sheet1!$A$1:$M$5087,9,FALSE) -> 三六零安全科技股份有限公司 | G2: =VLOOKUP($D2,[1]Sheet1!$A$1:$M$5087,12,FALSE) -> 1434515000.00 | H2: =VLOOKUP($D2,[1]Sheet1!$A$1:$M$5087,13,FALSE) -> 6934554000.00 | K2: Beijing | BQ2: 1
A3: 15 | B3: 东软集团 | C3: SH | D3: 东软集团 | E3: =VLOOKUP($D3,[1]Sheet1!$A$1:$M$5087,2,FALSE) -> 600718.SH | F3: =VLOOKUP($D3,[1]Sheet1!$A$1:$M$5087,9,FALSE) -> 东软集团股份有限公司 | G3: =VLOOKUP($D3,[1]Sheet1!$A$1:$M$5087,12,FALSE) -> 1457377629.00 | H3: =VLOOKUP($D3,[1]Sheet1!$A$1:$M$5087,13,FALSE) -> 5563998301.00 | K3: Beijing | AK3: 1
A4: 36 | B4: 龙芯中科 | C4: SH | D4: 龙芯中科 | E4: =VLOOKUP($D4,[1]Sheet1!$A$1:$M$5087,2,FALSE) -> 688047.SH | F4: =VLOOKUP($D4,[1]Sheet1!$A$1:$M$5087,9,FALSE) -> 龙芯中科技术股份有限公司 | G4: =VLOOKUP($D4,[1]Sheet1!$A$1:$M$5087,12,FALSE) -> 322896998.8 | H4: =VLOOKUP($D4,[1]Sheet1!$A$1:$M$5087,13,FALSE) -> 483762764.2 | K4: Beijing | N4: 1
A5: 40 | B5: 奇安信 | C5: SH | D5: 奇安信 | E5: =VLOOKUP($D5,[1]Sheet1!$A$1:$M$5087,2,FALSE) -> 688561.SH | F5: =VLOOKUP($D5,[1]Sheet1!$A$1:$M$5087,9,FALSE) -> 奇安信科技集团股份有限公司 | G5: =VLOOKUP($D5,[1]Sheet1!$A$1:$M$5087,12,FALSE) -> 1253992862 | H5: =VLOOKUP($D5,[1]Sheet1!$A$1:$M$5087,13,FALSE) -> 3191684379 | K5: Beijing | BB5: 1 | BF5: 1 | BL5: 1 | BU5: 1
A6: 58 | B6: 用友 | C6: SH | D6: 用友网络 | E6: =VLOOKUP($D6,[1]Sheet1!$A$1:$M$5087,2,FALSE) -> 600588.SH | F6: =VLOOKUP($D6,[1]Sheet1!$A$1:$M$5087,9,FALSE) -> 用友网络科技股份有限公司 | G6: =VLOOKUP($D6,[1]Sheet1!$A$1:$M$5087,12,FALSE) -> 2399600668.00 | H6: =VLOOKUP($D6,[1]Sheet1!$A$1:$M$5087,13,FALSE) -> 5595419922.00 | K6: Beijing | S6: 1 | AB6: 1 | AE6: 1 | AO6: 1 | AP6: 1 | AQ6: 1 | CO6: 1 | CP6: 1 | CQ6: 1 | CR6: 1
A7: 65 | B7: 中国电信 | C7: SH | D7: 中国电信 | E7: =VLOOKUP($D7,[1]Sheet1!$A$1:$M$5087,2,FALSE) -> 601728.SH | F7: =VLOOKUP($D7,[1]Sheet1!$A$1:$M$5087,9,FALSE) -> 中国电信股份有限公司 | G7: =VLOOKUP($D7,[1]Sheet1!$A$1:$M$5087,12,FALSE) -> 396133457989.20 | H7: =VLOOKUP($D7,[1]Sheet1!$A$1:$M$5087,13,FALSE) -> 3.57842938e+11 | K7: Beijing | R7: 1
A8: 66 | B8: 中国联通 | C8: SH | D8: 中国联通 | E8: =VLOOKUP($D8,[1]Sheet1!$A$1:$M$5087,2,FALSE) -> 600050.SH | F8: =VLOOKUP($D8,[1]Sheet1!$A$1:$M$5087,9,FALSE) -> 中国联合网络通信股份有限公司 | G8: =VLOOKUP($D8,[1]Sheet1!$A$1:$M$5087,12,FALSE) -> 292689580511.00 | H8: =VLOOKUP($D8,[1]Sheet1!$A$1:$M$5087,13,FALSE) -> 263977913122.00 | K8: Beijing | R8: 1
A9: 67 | B9: 中国移动 | C9: SH | D9: 中国移动 | E9: =VLOOKUP($D9,[1]Sheet1!$A$1:$M$5087,2,FALSE) -> 600941.SH | F9: =VLOOKUP($D9,[1]Sheet1!$A$1:$M$5087,9,FALSE) -> 中国移动有限公司 | G9: =VLOOKUP($D9,[1]Sheet1!$A$1:$M$5087,12,FALSE) -> 704445000000.00 | H9: =VLOOKUP($D9,[1]Sheet1!$A$1:$M$5087,13,FALSE) -> 723487000000.00 | K9: Beijing | R9: 1
A10: 68 | B10: 中望软件 | C10: SH | D10: 中望软件 | E10: =VLOOKUP($D10,[1]Sheet1!$A$1:$M$5087,2,FALSE) -> 688083.SH | F10: =VLOOKUP($D10,[1]Sheet1!$A$1:$M$5087,9,FALSE) -> 广州中望龙腾软件股份有限公司 | G10: =VLOOKUP($D10,[1]Sheet1!$A$1:$M$5087,12,FALSE) -> 70419698.72 | H10: =VLOOKUP($D10,[1]Sheet1!$A$1:$M$5087,13,FALSE) -> 349648105.6 | K10: Beijing | W10: 1 | X10: 1 | Y10: 1
A11: 107 | B11: 安恒信息 | C11: SH | D11: 安恒信息 | E11: =VLOOKUP($D11,[1]Sheet1!$A$1:$M$5087,2,FALSE) -> 688023.SH | F11: =VLOOKUP($D11,[1]Sheet1!$A$1:$M$5087,9,FALSE) -> 杭州安恒信息技术股份有限公司 | G11: =VLOOKUP($D11,[1]Sheet1!$A$1:$M$5087,12,FALSE) -> 462850454.4 | H11: =VLOOKUP($D11,[1]Sheet1!$A$1:$M$5087,13,FALSE) -> 1039606301.40 | K11: Non_Beijing | BL11: 1
A12: 109 | B12: 宝信软件 | C12: SH | D12: 宝信软件 | E12: =VLOOKUP($D12,[1]Sheet1!$A$1:$M$5087,2,FALSE) -> 600845.SH | F12: =VLOOKUP($D12,[1]Sheet1!$A$1:$M$5087,9,FALSE) -> 上海宝信软件股份有限公司 | G12: =VLOOKUP($D12,[1]Sheet1!$A$1:$M$5087,12,FALSE) -> 1482389060 | H12: =VLOOKUP($D12,[1]Sheet1!$A$1:$M$5087,13,FALSE) -> 7653052582 | K12: Non_Beijing | AG12: 1
A13: 116 | B13: 概伦电子 | C13: SH | D13: 概伦电子 | E13: =VLOOKUP($D13,[1]Sheet1!$A$1:$M$5087,2,FALSE) -> 688206.SH | F13: =VLOOKUP($D13,[1]Sheet1!$A$1:$M$5087,9,FALSE) -> 上海概伦电子股份有限公司 | G13: =VLOOKUP($D13,[1]Sheet1!$A$1:$M$5087,12,FALSE) -> 57620615.86 | H13: =VLOOKUP($D13,[1]Sheet1!$A$1:$M$5087,13,FALSE) -> 170710609.2 | K13: Non_Beijing | AC13: 1
A14: 124 | B14: 海尔 | C14: SH | D14: 海尔智家 | E14: =VLOOKUP($D14,[1]Sheet1!$A$1:$M$5087,2,FALSE) -> 600690.SH | F14: =VLOOKUP($D14,[1]Sheet1!$A$1:$M$5087,9,FALSE) -> 海尔智家股份有限公司 | G14: =VLOOKUP($D14,[1]Sheet1!$A$1:$M$5087,12,FALSE) -> 24514888907.20 | H14: =VLOOKUP($D14,[1]Sheet1!$A$1:$M$5087,13,FALSE) -> 184748766010.10 | K14: Non_Beijing | R14: 1 | DL14: 1 | DM14: 1 | DN14: 1
A15: 135 | B15: 浪潮 | C15: SH | D15: 浪潮软件 | E15: =VLOOKUP($D15,[1]Sheet1!$A$1:$M$5087,2,FALSE) -> 600756.SH | F15: =VLOOKUP($D15,[1]Sheet1!$A$1:$M$5087,9,FALSE) -> 浪潮软件股份有限公司 | G15: =VLOOKUP($D15,[1]Sheet1!$A$1:$M$5087,12,FALSE) -> 77633905.16 | H15: =VLOOKUP($D15,[1]Sheet1!$A$1:$M$5087,13,FALSE) -> 1195061071 | K15: Non_Beijing | P15: 1 | AE15: 1 | AO15: 1 | CT15: 1 | CU15: 1 | CV15: 1 | CW15: 1 | CX15: 1 | CY15: 1 | CZ15: 1 | DJ15: 1
A16: 139 | B16: 容知日新 | C16: SH | D16: 容知日新 | E16: =VLOOKUP($D16,[1]Sheet1!$A$1:$M$5087,2,FALSE) -> 688768.SH | F16: =VLOOKUP($D16,[1]Sheet1!$A$1:$M$5087,9,FALSE) -> 安徽容知日新科技股份有限公司 | G16: =VLOOKUP($D16,[1]Sheet1!$A$1:$M$5087,12,FALSE) -> 45702157.19 | H16: =VLOOKUP($D16,[1]Sheet1!$A$1:$M$5087,13,FALSE) -> 322612395.10 | K16: Non_Beijing | AM16: 1
A17: 140 | B17: 山石网科 | C17: SH | D17: 山石网科 | E17: =VLOOKUP($D17,[1]Sheet1!$A$1:$M$5087,2,FALSE) -> 688030.SH | F17: =VLOOKUP($D17,[1]Sheet1!$A$1:$M$5087,9,FALSE) -> 山石网科通信技术股份有限公司 | G17: =VLOOKUP($D17,[1]Sheet1!$A$1:$M$5087,12,FALSE) -> 260450629.2 | H17: =VLOOKUP($D17,[1]Sheet1!$A$1:$M$5087,13,FALSE) -> 713733934.4 | K17: Non_Beijing | AV17: 1 | AY17: 1 | AZ17: 1 | BW17: 1 | BY17: 1 | BZ17: 1 | CE17: 1
A18: 150 | B18: 唯捷创芯 | C18: SH | D18: 唯捷创芯 | E18: =VLOOKUP($D18,[1]Sheet1!$A$1:$M$5087,2,FALSE) -> 688153.SH | F18: =VLOOKUP($D18,[1]Sheet1!$A$1:$M$5087,9,FALSE) -> 唯捷创芯(天津)电子技术股份有限公司 | G18: =VLOOKUP($D18,[1]Sheet1!$A$1:$M$5087,12,FALSE) -> 276223596.9 | H18: =VLOOKUP($D18,[1]Sheet1!$A$1:$M$5087,13,FALSE) -> 1777497365 | K18: Non_Beijing | N18: 1
A19: 168 | B19: 中控技术 | C19: SH | D19: 中控技术 | E19: =VLOOKUP($D19,[1]Sheet1!$A$1:$M$5087,2,FALSE) -> 688777.SH | F19: =VLOOKUP($D19,[1]Sheet1!$A$1:$M$5087,9,FALSE) -> 浙江中控技术股份有限公司 | G19: =VLOOKUP($D19,[1]Sheet1!$A$1:$M$5087,12,FALSE) -> 294025037.5 | H19: =VLOOKUP($D19,[1]Sheet1!$A$1:$M$5087,13,FALSE) -> 4226806481 | K19: Non_Beijing | O19: 1 | AG19: 1 | AH19: 1 | AJ19: 1 | DL19: 1 | DM19: 1 | DN19: 1
A20: 169 | B20: 中芯国际 | C20: SH | D20: 中芯国际 | E20: =VLOOKUP($D20,[1]Sheet1!$A$1:$M$5087,2,FALSE) -> 688981.SH | F20: =VLOOKUP($D20,[1]Sheet1!$A$1:$M$5087,9,FALSE) -> 中芯国际集成电路制造有限公司 | G20: =VLOOKUP($D20,[1]Sheet1!$A$1:$M$5087,12,FALSE) -> 80504741000.00 | H20: =VLOOKUP($D20,[1]Sheet1!$A$1:$M$5087,13,FALSE) -> 37763559000.00 | K20: Non_Beijing | N20: 1
A21: 11 | B21: 北信源 | C21: SZ | D21: 北信源 | E21: =VLOOKUP($D21,[1]Sheet1!$A$1:$M$5087,2,FALSE) -> 300352.SZ | F21: =VLOOKUP($D21,[1]Sheet1!$A$1:$M$5087,9,FALSE) -> 北京北信源软件股份有限公司 | G21: =VLOOKUP($D21,[1]Sheet1!$A$1:$M$5087,12,FALSE) -> 77074388.63 | H21: =VLOOKUP($D21,[1]Sheet1!$A$1:$M$5087,13,FALSE) -> 464684362.7 | K21: Beijing | BR21: 1
A22: 13 | B22: 东方国信 | C22: SZ | D22: 东方国信 | E22: =VLOOKUP($D22,[1]Sheet1!$A$1:$M$5087,2,FALSE) -> 300166.SZ | F22: =VLOOKUP($D22,[1]Sheet1!$A$1:$M$5087,9,FALSE) -> 北京东方国信科技股份有限公司 | G22: =VLOOKUP($D22,[1]Sheet1!$A$1:$M$5087,12,FALSE) -> 520633500.1 | H22: =VLOOKUP($D22,[1]Sheet1!$A$1:$M$5087,13,FALSE) -> 1424966265 | K22: Beijing | S22: 1 | CT22: 1 | CU22: 1 | CV22: 1 | CW22: 1 | CX22: 1 | CY22: 1 | CZ22: 1 | DC22: 1 | DD22: 1 | DE22: 1 | DF22: 1 | DH22: 1 | DI22: 1 | DL22: 1 | DM22: 1 | DN22: 1
A23: 14 | B23: 东华软件 | C23: SZ | D23: 东华软件 | E23: =VLOOKUP($D23,[1]Sheet1!$A$1:$M$5087,2,FALSE) -> 002065.SZ | F23: =VLOOKUP($D23,[1]Sheet1!$A$1:$M$5087,9,FALSE) -> 东华软件股份公司 | G23: =VLOOKUP($D23,[1]Sheet1!$A$1:$M$5087,12,FALSE) -> 373161892.90 | H23: =VLOOKUP($D23,[1]Sheet1!$A$1:$M$5087,13,FALSE) -> 7320357215 | K23: Beijing | AJ23: 1 | AQ23: 1
A24: 16 | B24: 东土科技 | C24: SZ | D24: 东土科技 | E24: =VLOOKUP($D24,[1]Sheet1!$A$1:$M$5087,2,FALSE) -> 300353.SZ | F24: =VLOOKUP($D24,[1]Sheet1!$A$1:$M$5087,9,FALSE) -> 北京东土科技股份有限公司 | G24: =VLOOKUP($D24,[1]Sheet1!$A$1:$M$5087,12,FALSE) -> 354573374.9 | H24: =VLOOKUP($D24,[1]Sheet1!$A$1:$M$5087,13,FALSE) -> 581446025.6 | K24: Beijing | P24: 1 | DL24: 1 | DM24: 1 | DN24: 1
A25: 25 | B25: 华大九天 | C25: SZ | D25: 华大九天 | E25: =VLOOKUP($D25,[1]Sheet1!$A$1:$M$5087,2,FALSE) -> 301269.SZ | F25: =VLOOKUP($D25,[1]Sheet1!$A$1:$M$5087,9,FALSE) -> 北京华大九天科技股份有限公司 | G25: =VLOOKUP($D25,[1]Sheet1!$A$1:$M$5087,12,FALSE) -> 490785437.00 | H25: =VLOOKUP($D25,[1]Sheet1!$A$1:$M$5087,13,FALSE) -> 482790476 | K25: Beijing | AC25: 1
A26: 37 | B26: 绿盟 | C26: SZ | D26: 绿盟科技 | E26: =VLOOKUP($D26,[1]Sheet1!$A$1:$M$5087,2,FALSE) -> 300369.SZ | F26: =VLOOKUP($D26,[1]Sheet1!$A$1:$M$5087,9,FALSE) -> 绿盟科技集团股份有限公司 | G26: =VLOOKUP($D26,[1]Sheet1!$A$1:$M$5087,12,FALSE) -> 262092897.5 | H26: =VLOOKUP($D26,[1]Sheet1!$A$1:$M$5087,13,FALSE) -> 1387715117 | K26: Beijing | AW26: 1 | AY26: 1 | BC26: 1 | BJ26: 1 | BS26: 1 | BX26: 1
A27: 41 | B27: 启明星辰 | C27: SZ | D27: 启明星辰 | E27: =VLOOKUP($D27,[1]Sheet1!$A$1:$M$5087,2,FALSE) -> 002439.SZ | F27: =VLOOKUP($D27,[1]Sheet1!$A$1:$M$5087,9,FALSE) -> 启明星辰信息技术集团股份有限公司 | G27: =VLOOKUP($D27,[1]Sheet1!$A$1:$M$5087,12,FALSE) -> 670772838.9 | H27: =VLOOKUP($D27,[1]Sheet1!$A$1:$M$5087,13,FALSE) -> 2168371071 | K27: Beijing | AW27: 1 | AZ27: 1 | BJ27: 1 | BK27: 1 | BM27: 1 | BN27: 1 | BW27: 1 | BX27: 1 | CD27: 1
A28: 53 | B28: 天融信 | C28: SZ | D28: 天融信 | E28: =VLOOKUP($D28,[1]Sheet1!$A$1:$M$5087,2,FALSE) -> 002212.SZ | F28: =VLOOKUP($D28,[1]Sheet1!$A$1:$M$5087,9,FALSE) -> 天融信科技集团股份有限公司 | G28: =VLOOKUP($D28,[1]Sheet1!$A$1:$M$5087,12,FALSE) -> 410157887.20 | H28: =VLOOKUP($D28,[1]Sheet1!$A$1:$M$5087,13,FALSE) -> 1463262268 | K28: Beijing | AX28: 1 | AY28: 1 | AZ28: 1 | BD28: 1 | BE28: 1 | BL28: 1 | BM28: 1 | BN28: 1 | BO28: 1 | BT28: 1 | BX28: 1 | BY28: 1 | CB28: 1 | CC28: 1 | CD28: 1
A29: 69 | B29: 紫光集团 | C29: SZ | D29: 紫光股份 | E29: =VLOOKUP($D29,[1]Sheet1!$A$1:$M$5087,2,FALSE) -> 000938.SZ | F29: =VLOOKUP($D29,[1]Sheet1!$A$1:$M$5087,9,FALSE) -> 紫光股份有限公司 | G29: =VLOOKUP($D29,[1]Sheet1!$A$1:$M$5087,12,FALSE) -> 998745868.80 | H29: =VLOOKUP($D29,[1]Sheet1!$A$1:$M$5087,13,FALSE) -> 5.388995108e+10 | K29: Beijing | N29: 1
A30: 111 | B30: 鼎捷软件 | C30: SZ | D30: 鼎捷软件 | E30: =VLOOKUP($D30,[1]Sheet1!$A$1:$M$5087,2,FALSE) -> 300378.SZ | F30: =VLOOKUP($D30,[1]Sheet1!$A$1:$M$5087,9,FALSE) -> 鼎捷软件股份有限公司 | G30: =VLOOKUP($D30,[1]Sheet1!$A$1:$M$5087,12,FALSE) -> 715393051 | H30: =VLOOKUP($D30,[1]Sheet1!$A$1:$M$5087,13,FALSE) -> 1278827821 | K30: Non_Beijing | AB30: 1 | AG30: 1 | AO30: 1
A31: 112 | B31: 东华测试 | C31: SZ | D31: 东华测试 | E31: =VLOOKUP($D31,[1]Sheet1!$A$1:$M$5087,2,FALSE) -> 300354.SZ | F31: =VLOOKUP($D31,[1]Sheet1!$A$1:$M$5087,9,FALSE) -> 江苏东华测试技术股份有限公司 | G31: =VLOOKUP($D31,[1]Sheet1!$A$1:$M$5087,12,FALSE) -> 112545394.4 | H31: =VLOOKUP($D31,[1]Sheet1!$A$1:$M$5087,13,FALSE) -> 223018698.7 | K31: Non_Beijing | AM31: 1
A32: 119 | B32: 广联达 | C32: SZ | D32: 广联达 | E32: =VLOOKUP($D32,[1]Sheet1!$A$1:$M$5087,2,FALSE) -> 002410.SZ | F32: =VLOOKUP($D32,[1]Sheet1!$A$1:$M$5087,9,FALSE) -> 广联达科技股份有限公司 | G32: =VLOOKUP($D32,[1]Sheet1!$A$1:$M$5087,12,FALSE) -> 837950437.4 | H32: =VLOOKUP($D32,[1]Sheet1!$A$1:$M$5087,13,FALSE) -> 4461263422 | K32: Non_Beijing | W32: 1
A33: 122 | B33: 国民技术 | C33: SZ | D33: 国民技术 | E33: =VLOOKUP($D33,[1]Sheet1!$A$1:$M$5087,2,FALSE) -> 300077.SZ | F33: =VLOOKUP($D33,[1]Sheet1!$A$1:$M$5087,9,FALSE) -> 国民技术股份有限公司 | G33: =VLOOKUP($D33,[1]Sheet1!$A$1:$M$5087,12,FALSE) -> 608924806 | H33: =VLOOKUP($D33,[1]Sheet1!$A$1:$M$5087,13,FALSE) -> 934453079.4 | K33: Non_Beijing | BG33: 1
A34: 123 | B34: 海得控制 | C34: SZ | D34: 海得控制 | E34: =VLOOKUP($D34,[1]Sheet1!$A$1:$M$5087,2,FALSE) -> 002184.SZ | F34: =VLOOKUP($D34,[1]Sheet1!$A$1:$M$5087,9,FALSE) -> 上海海得控制系统股份有限公司 | G34: =VLOOKUP($D34,[1]Sheet1!$A$1:$M$5087,12,FALSE) -> 215389974.8 | H34: =VLOOKUP($D34,[1]Sheet1!$A$1:$M$5087,13,FALSE) -> 1683421687.80 | K34: Non_Beijing | O34: 1
A35: 128 | B35: 华伍股份 | C35: SZ | D35: 华伍股份 | E35: =VLOOKUP($D35,[1]Sheet1!$A$1:$M$5087,2,FALSE) -> 300095.SZ | F35: =VLOOKUP($D35,[1]Sheet1!$A$1:$M$5087,9,FALSE) -> 江西华伍制动器股份有限公司 | G35: =VLOOKUP($D35,[1]Sheet1!$A$1:$M$5087,12,FALSE) -> 395125907.5 | H35: =VLOOKUP($D35,[1]Sheet1!$A$1:$M$5087,13,FALSE) -> 1054489165 | K35: Non_Beijing | O35: 1
A36: 129 | B36: 华中数控 | C36: SZ | D36: 华中数控 | E36: =VLOOKUP($D36,[1]Sheet1!$A$1:$M$5087,2,FALSE) -> 300161.SZ | F36: =VLOOKUP($D36,[1]Sheet1!$A$1:$M$5087,9,FALSE) -> 武汉华中数控股份有限公司 | G36: =VLOOKUP($D36,[1]Sheet1!$A$1:$M$5087,12,FALSE) -> 289755400.8 | H36: =VLOOKUP($D36,[1]Sheet1!$A$1:$M$5087,13,FALSE) -> 972013690.8 | K36: Non_Beijing | O36: 1 | T36: 1
A37: 132 | B37: 科远智慧 | C37: SZ | D37: 科远智慧 | E37: =VLOOKUP($D37,[1]Sheet1!$A$1:$M$5087,2,FALSE) -> 002380.SZ | F37: =VLOOKUP($D37,[1]Sheet1!$A$1:$M$5087,9,FALSE) -> 南京科远智慧科技集团股份有限公司 | G37: =VLOOKUP($D37,[1]Sheet1!$A$1:$M$5087,12,FALSE) -> 969426870.2 | H37: =VLOOKUP($D37,[1]Sheet1!$A$1:$M$5087,13,FALSE) -> 899942881.6 | K37: Non_Beijing | AH37: 1
A38: 133 | B38: 蓝盾股份 | C38: SZ | D38: *ST蓝盾 | E38: =VLOOKUP($D38,[1]Sheet1!$A$1:$M$5087,2,FALSE) -> 300297.SZ | F38: =VLOOKUP($D38,[1]Sheet1!$A$1:$M$5087,9,FALSE) -> 蓝盾信息安全技术股份有限公司 | G38: =VLOOKUP($D38,[1]Sheet1!$A$1:$M$5087,12,FALSE) -> 259710145.9 | H38: =VLOOKUP($D38,[1]Sheet1!$A$1:$M$5087,13,FALSE) -> 122955458.7 | K38: Non_Beijing | AX38: 1 | BQ38: 1
A39: 136 | B39: 美的 | C39: SZ | D39: 美的集团 | E39: =VLOOKUP($D39,[1]Sheet1!$A$1:$M$5087,2,FALSE) -> 000333.SZ | F39: =VLOOKUP($D39,[1]Sheet1!$A$1:$M$5087,9,FALSE) -> 美的集团股份有限公司 | G39: =VLOOKUP($D39,[1]Sheet1!$A$1:$M$5087,12,FALSE) -> 24084306000.00 | H39: =VLOOKUP($D39,[1]Sheet1!$A$1:$M$5087,13,FALSE) -> 271775057000.00 | K39: Non_Beijing | R39: 1
A40: 138 | B40: 启明信息 | C40: SZ | D40: 启明信息 | E40: =VLOOKUP($D40,[1]Sheet1!$A$1:$M$5087,2,FALSE) -> 002232.SZ | F40: =VLOOKUP($D40,[1]Sheet1!$A$1:$M$5087,9,FALSE) -> 启明信息技术股份有限公司 | G40: =VLOOKUP($D40,[1]Sheet1!$A$1:$M$5087,12,FALSE) -> 181304164.50 | H40: =VLOOKUP($D40,[1]Sheet1!$A$1:$M$5087,13,FALSE) -> 1045211164 | K40: Non_Beijing | AA40: 1
A41: 142 | B41: 深信服 | C41: SZ | D41: 深信服 | E41: =VLOOKUP($D41,[1]Sheet1!$A$1:$M$5087,2,FALSE) -> 300454.SZ | F41: =VLOOKUP($D41,[1]Sheet1!$A$1:$M$5087,9,FALSE) -> 深信服科技股份有限公司 | G41: =VLOOKUP($D41,[1]Sheet1!$A$1:$M$5087,12,FALSE) -> 397106309.6 | H41: =VLOOKUP($D41,[1]Sheet1!$A$1:$M$5087,13,FALSE) -> 4747570801 | K41: Non_Beijing | AV41: 1 | BD41: 1 | BE41: 1 | BO41: 1
A42: 147 | B42: 拓邦股份 | C42: SZ | D42: 拓邦股份 | E42: =VLOOKUP($D42,[1]Sheet1!$A$1:$M$5087,2,FALSE) -> 002139.SZ | F42: =VLOOKUP($D42,[1]Sheet1!$A$1:$M$5087,9,FALSE) -> 深圳拓邦股份有限公司 | G42: =VLOOKUP($D42,[1]Sheet1!$A$1:$M$5087,12,FALSE) -> 1779362146 | H42: =VLOOKUP($D42,[1]Sheet1!$A$1:$M$5087,13,FALSE) -> 6535436281 | K42: Non_Beijing | O42: 1
A43: 152 | B43: 卫士通 | C43: SZ | D43: 电科网安 | E43: =VLOOKUP($D43,[1]Sheet1!$A$1:$M$5087,2,FALSE) -> 002268.SZ | F43: =VLOOKUP($D43,[1]Sheet1!$A$1:$M$5087,9,FALSE) -> 中电科网络安全科技股份有限公司 | G43: =VLOOKUP($D43,[1]Sheet1!$A$1:$M$5087,12,FALSE) -> 296422684.7 | H43: =VLOOKUP($D43,[1]Sheet1!$A$1:$M$5087,13,FALSE) -> 2058862678 | K43: Non_Beijing | BQ43: 1
A44: 159 | B44: 徐工集团 | C44: SZ | D44: 徐工机械 | E44: =VLOOKUP($D44,[1]Sheet1!$A$1:$M$5087,2,FALSE) -> 000425.SZ | F44: =VLOOKUP($D44,[1]Sheet1!$A$1:$M$5087,9,FALSE) -> 徐工集团工程机械股份有限公司 | G44: =VLOOKUP($D44,[1]Sheet1!$A$1:$M$5087,12,FALSE) -> 1.713921163e+10 | H44: =VLOOKUP($D44,[1]Sheet1!$A$1:$M$5087,13,FALSE) -> 7.51103037e+10 | K44: Non_Beijing | CO44: 1 | CP44: 1 | CQ44: 1 | CR44: 1
A45: 167 | B45: 中环股份 | C45: SZ | D45: TCL中环 | E45: =VLOOKUP($D45,[1]Sheet1!$A$1:$M$5087,2,FALSE) -> 002129.SZ | F45: =VLOOKUP($D45,[1]Sheet1!$A$1:$M$5087,9,FALSE) -> TCL中环新能源科技股份有限公司 | G45: =VLOOKUP($D45,[1]Sheet1!$A$1:$M$5087,12,FALSE) -> 3.677686098e+10 | H45: =VLOOKUP($D45,[1]Sheet1!$A$1:$M$5087,13,FALSE) -> 4.98448875e+10 | K45: Non_Beijing | N45: 1
A46: 1 | B46: 51WORLD | D46: 51WORLD | F46: 北京五一视界数字孪生科技股份有限公司 | G46: 524000000.00 | H46: 138000000.00 | K46: Beijing | CM46: 1
A47: 2 | B47: 706所 | D47: 706所 | F47: 北京航天爱威电子技术有限公司 | K47: Beijing | P47: 1
A48: 3 | B48: 艾克斯特 | D48: 艾克斯特 | F48: 北京艾克斯特科技有限公司 | J48: 50.00 | K48: Beijing | Z48: 1 | AA48: 1 | AB48: 1 | AO48: 1
A49: 4 | B49: 爱创科技 | D49: 爱创科技 | F49: 北京爱创科技股份有限公司 | G49: =VLOOKUP($D49,[1]Sheet1!$A$1:$M$5087,12,FALSE) ->  | H49: =VLOOKUP($D49,[1]Sheet1!$A$1:$M$5087,13,FALSE) ->  | K49: Beijing | S49: 1
A50: 5 | B50: 安华金和 | D50: 安华金和 | F50: 北京安华金和科技有限公司 | G50: =VLOOKUP($D50,[1]Sheet1!$A$1:$M$5087,12,FALSE) ->  | H50: =VLOOKUP($D50,[1]Sheet1!$A$1:$M$5087,13,FALSE) ->  | K50: Beijing | BY50: 1 | BZ50: 1 | CA50: 1 | CE50: 1
A51: 6 | B51: 安世亚太 | D51: 安世亚太 | F51: 安世亚太科技股份有限公司 | G51: =VLOOKUP($D51,[1]Sheet1!$A$1:$M$5087,12,FALSE) ->  | H51: =VLOOKUP($D51,[1]Sheet1!$A$1:$M$5087,13,FALSE) ->  | K51: Beijing | X51: 1 | CO51: 1 | CP51: 1 | CQ51: 1 | CR51: 1
A52: 7 | B52: 百望 | D52: 百望 | F52: 百望股份有限公司 | G52: =VLOOKUP($D52,[1]Sheet1!$A$1:$M$5087,12,FALSE) ->  | H52: =VLOOKUP($D52,[1]Sheet1!$A$1:$M$5087,13,FALSE) ->  | K52: Beijing | DJ52: 1
A53: 8 | B53: 梆梆安全 | D53: 梆梆安全 | F53: 北京梆梆安全科技有限公司 | G53: =VLOOKUP($D53,[1]Sheet1!$A$1:$M$5087,12,FALSE) ->  | H53: =VLOOKUP($D53,[1]Sheet1!$A$1:$M$5087,13,FALSE) ->  | K53: Beijing | AV53: 1
A54: 9 | B54: 北京航天测控 | D54: 北京航天测控 | F54: 北京航天测控技术有限公司 | G54: =VLOOKUP($D54,[1]Sheet1!$A$1:$M$5087,12,FALSE) ->  | H54: =VLOOKUP($D54,[1]Sheet1!$A$1:$M$5087,13,FALSE) ->  | K54: Beijing | AL54: 1 | AM54: 1
A55: 10 | B55: 北京英贝思 | D55: 北京英贝思 | F55: 北京英贝思科技有限公司 | G55: =VLOOKUP($D55,[1]Sheet1!$A$1:$M$5087,12,FALSE) ->  | H55: =VLOOKUP($D55,[1]Sheet1!$A$1:$M$5087,13,FALSE) ->  | K55: Beijing | AK55: 1
A56: 12 | B56: 大唐软件 | D56: 大唐软件 | E56: =VLOOKUP($D56,[1]Sheet1!$A$1:$M$5087,2,FALSE) ->  | F56: 大唐软件技术股份有限公司 | G56: =VLOOKUP($D56,[1]Sheet1!$A$1:$M$5087,12,FALSE) ->  | H56: =VLOOKUP($D56,[1]Sheet1!$A$1:$M$5087,13,FALSE) ->  | K56: Beijing | R56: 1
A57: 17 | B57: 国保金泰 | D57: 国保金泰 | E57: =VLOOKUP($D57,[1]Sheet1!$A$1:$M$5087,2,FALSE) ->  | F57: 北京国保金泰信息安全技术有限公司 | G57: =VLOOKUP($D57,[1]Sheet1!$A$1:$M$5087,12,FALSE) ->  | H57: =VLOOKUP($D57,[1]Sheet1!$A$1:$M$5087,13,FALSE) ->  | K57: Beijing | BE57: 1
A58: 18 | B58: 国能智深 | D58: 国能智深 | E58: =VLOOKUP($D58,[1]Sheet1!$A$1:$M$5087,2,FALSE) ->  | F58: 国能智深控制技术有限公司 | G58: =VLOOKUP($D58,[1]Sheet1!$A$1:$M$5087,12,FALSE) ->  | H58: =VLOOKUP($D58,[1]Sheet1!$A$1:$M$5087,13,FALSE) ->  | K58: Beijing | AH58: 1
A59: 19 | B59: 国泰网信 | D59: 国泰网信 | E59: =VLOOKUP($D59,[1]Sheet1!$A$1:$M$5087,2,FALSE) ->  | F59: 北京国泰网信科技有限公司 | G59: =VLOOKUP($D59,[1]Sheet1!$A$1:$M$5087,12,FALSE) ->  | H59: =VLOOKUP($D59,[1]Sheet1!$A$1:$M$5087,13,FALSE) ->  | K59: Beijing | BB59: 1
A60: 20 | B60: 海基科技 | D60: 海基科技 | E60: =VLOOKUP($D60,[1]Sheet1!$A$1:$M$5087,2,FALSE) ->  | F60: 北京海基科技发展有限责任公司 | G60: =VLOOKUP($D60,[1]Sheet1!$A$1:$M$5087,12,FALSE) ->  | H60: =VLOOKUP($D60,[1]Sheet1!$A$1:$M$5087,13,FALSE) ->  | K60: Beijing | X60: 1
A61: 21 | B61: 海克斯康 | C61: Nasdaq | D61: 海克斯康 | E61: HEXA B | F61: 海克斯康集团 | G61: =VLOOKUP($D61,[1]Sheet1!$A$1:$M$5087,12,FALSE) ->  | H61: =VLOOKUP($D61,[1]Sheet1!$A$1:$M$5087,13,FALSE) ->  | K61: Foreign | Y61: 1
A62: 22 | B62: 航天云网 | D62: 航天云网 | E62: =VLOOKUP($D62,[1]Sheet1!$A$1:$M$5087,2,FALSE) ->  | F62: 航天云网科技发展有限责任公司 | G62: =VLOOKUP($D62,[1]Sheet1!$A$1:$M$5087,12,FALSE) ->  | H62: =VLOOKUP($D62,[1]Sheet1!$A$1:$M$5087,13,FALSE) ->  | K62: Beijing | R62: 1 | S62: 1 | AL62: 1 | CI62: 1 | CJ62: 1 | CK62: 1 | CL62: 1 | CM62: 1 | CT62: 1 | CU62: 1 | CV62: 1 | CW62: 1 | CX62: 1 | CY62: 1 | CZ62: 1 | DC62: 1 | DD62: 1 | DE62: 1 | DF62: 1 | DH62: 1 | DI62: 1 | DL62: 1 | DM62: 1 | DN62: 1
A63: 23 | B63: 和利时 | C63: Nasdaq | D63: 和利时 | E63: HOLI | F63: 和利时科技集团有限公司 | G63: =VLOOKUP($D63,[1]Sheet1!$A$1:$M$5087,12,FALSE) ->  | H63: =VLOOKUP($D63,[1]Sheet1!$A$1:$M$5087,13,FALSE) ->  | K63: Beijing | O63: 1 | AG63: 1 | AH63: 1 | AI63: 1 | AJ63: 1 | BH63: 1 | CY63: 1 | DL63: 1 | DM63: 1 | DN63: 1
A64: 24 | B64: 华大电子 | C64: HK | D64: 华大电子 | E64: 00085 | F64: 北京中电华大电子设计有限责任公司 | G64: =VLOOKUP($D64,[1]Sheet1!$A$1:$M$5087,12,FALSE) ->  | H64: =VLOOKUP($D64,[1]Sheet1!$A$1:$M$5087,13,FALSE) ->  | K64: Beijing | N64: 1
A65: 26 | B65: 寄云科技 | D65: 寄云科技 | E65: =VLOOKUP($D65,[1]Sheet1!$A$1:$M$5087,2,FALSE) ->  | F65: 北京寄云科技有限公司 | G65: =VLOOKUP($D65,[1]Sheet1!$A$1:$M$5087,12,FALSE) ->  | H65: =VLOOKUP($D65,[1]Sheet1!$A$1:$M$5087,13,FALSE) ->  | K65: Beijing | CT65: 1 | CU65: 1 | CV65: 1 | CW65: 1 | CX65: 1 | CY65: 1 | CZ65: 1
A66: 27 | B66: 江南天安 | D66: 江南天安 | E66: =VLOOKUP($D66,[1]Sheet1!$A$1:$M$5087,2,FALSE) ->  | F66: 北京江南天安科技有限公司 | G66: =VLOOKUP($D66,[1]Sheet1!$A$1:$M$5087,12,FALSE) ->  | H66: =VLOOKUP($D66,[1]Sheet1!$A$1:$M$5087,13,FALSE) ->  | K66: Beijing | BR66: 1
A67: 28 | B67: 金山 | D67: 金山云 | E67: =VLOOKUP($D67,[1]Sheet1!$A$1:$M$5087,2,FALSE) ->  | F67: =VLOOKUP($D67,[1]Sheet1!$A$1:$M$5087,9,FALSE) ->  | G67: =VLOOKUP($D67,[1]Sheet1!$A$1:$M$5087,12,FALSE) ->  | H67: =VLOOKUP($D67,[1]Sheet1!$A$1:$M$5087,13,FALSE) ->  | K67: Beijing | DJ67: 1
A68: 29 | B68: 京东工业品 | D68: 京东集团 | E68: =VLOOKUP($D68,[1]Sheet1!$A$1:$M$5087,2,FALSE) ->  | F68: =VLOOKUP($D68,[1]Sheet1!$A$1:$M$5087,9,FALSE) ->  | G68: =VLOOKUP($D68,[1]Sheet1!$A$1:$M$5087,12,FALSE) ->  | H68: =VLOOKUP($D68,[1]Sheet1!$A$1:$M$5087,13,FALSE) ->  | K68: Beijing | AL68: 1
A69: 30 | B69: 可信华泰 | D69: 可信华泰 | E69: =VLOOKUP($D69,[1]Sheet1!$A$1:$M$5087,2,FALSE) ->  | F69: =VLOOKUP($D69,[1]Sheet1!$A$1:$M$5087,9,FALSE) ->  | G69: =VLOOKUP($D69,[1]Sheet1!$A$1:$M$5087,12,FALSE) ->  | H69: =VLOOKUP($D69,[1]Sheet1!$A$1:$M$5087,13,FALSE) ->  | K69: Beijing | BG69: 1
A70: 31 | B70: 昆仑数据 | D70: 昆仑数据 | E70: =VLOOKUP($D70,[1]Sheet1!$A$1:$M$5087,2,FALSE) ->  | F70: =VLOOKUP($D70,[1]Sheet1!$A$1:$M$5087,9,FALSE) ->  | G70: =VLOOKUP($D70,[1]Sheet1!$A$1:$M$5087,12,FALSE) ->  | H70: =VLOOKUP($D70,[1]Sheet1!$A$1:$M$5087,13,FALSE) ->  | K70: Beijing | AI70: 1 | DC70: 1 | DD70: 1 | DE70: 1 | DF70: 1 | DH70: 1 | DI70: 1
A71: 32 | B71: 兰光创新 | D71: 兰光创新 | E71: =VLOOKUP($D71,[1]Sheet1!$A$1:$M$5087,2,FALSE) ->  | F71: =VLOOKUP($D71,[1]Sheet1!$A$1:$M$5087,9,FALSE) ->  | G71: =VLOOKUP($D71,[1]Sheet1!$A$1:$M$5087,12,FALSE) ->  | H71: =VLOOKUP($D71,[1]Sheet1!$A$1:$M$5087,13,FALSE) ->  | K71: Beijing | T71: 1
A72: 33 | B72: 蓝谷信息 | D72: 蓝谷信息 | E72: =VLOOKUP($D72,[1]Sheet1!$A$1:$M$5087,2,FALSE) ->  | F72: =VLOOKUP($D72,[1]Sheet1!$A$1:$M$5087,9,FALSE) ->  | G72: =VLOOKUP($D72,[1]Sheet1!$A$1:$M$5087,12,FALSE) ->  | H72: =VLOOKUP($D72,[1]Sheet1!$A$1:$M$5087,13,FALSE) ->  | K72: Beijing | CO72: 1 | CP72: 1 | CQ72: 1 | CR72: 1
A73: 34 | B73: 力控科技 | D73: 力控科技 | E73: =VLOOKUP($D73,[1]Sheet1!$A$1:$M$5087,2,FALSE) ->  | F73: =VLOOKUP($D73,[1]Sheet1!$A$1:$M$5087,9,FALSE) ->  | G73: =VLOOKUP($D73,[1]Sheet1!$A$1:$M$5087,12,FALSE) ->  | H73: =VLOOKUP($D73,[1]Sheet1!$A$1:$M$5087,13,FALSE) ->  | K73: Beijing | AI73: 1
A74: 35 | B74: 凌昊智能 | D74: 凌昊智能 | E74: =VLOOKUP($D74,[1]Sheet1!$A$1:$M$5087,2,FALSE) ->  | F74: =VLOOKUP($D74,[1]Sheet1!$A$1:$M$5087,9,FALSE) ->  | G74: =VLOOKUP($D74,[1]Sheet1!$A$1:$M$5087,12,FALSE) ->  | H74: =VLOOKUP($D74,[1]Sheet1!$A$1:$M$5087,13,FALSE) ->  | K74: Beijing | P74: 1
A75: 38 | B75: 牛刀 | D75: 起步科技 | E75: =VLOOKUP($D75,[1]Sheet1!$A$1:$M$5087,2,FALSE) ->  | F75: =VLOOKUP($D75,[1]Sheet1!$A$1:$M$5087,9,FALSE) ->  | G75: =VLOOKUP($D75,[1]Sheet1!$A$1:$M$5087,12,FALSE) ->  | H75: =VLOOKUP($D75,[1]Sheet1!$A$1:$M$5087,13,FALSE) ->  | K75: Beijing | CI75: 1 | CJ75: 1 | CK75: 1 | CL75: 1 | CM75: 1
A76: 39 | B76: 欧特克 | D76: 欧特克 | E76: =VLOOKUP($D76,[1]Sheet1!$A$1:$M$5087,2,FALSE) ->  | F76: =VLOOKUP($D76,[1]Sheet1!$A$1:$M$5087,9,FALSE) ->  | G76: =VLOOKUP($D76,[1]Sheet1!$A$1:$M$5087,12,FALSE) ->  | H76: =VLOOKUP($D76,[1]Sheet1!$A$1:$M$5087,13,FALSE) ->  | K76: Beijing | Y76: 1
A77: 42 | B77: 山大华天 | D77: 山大华天 | E77: =VLOOKUP($D77,[1]Sheet1!$A$1:$M$5087,2,FALSE) ->  | F77: =VLOOKUP($D77,[1]Sheet1!$A$1:$M$5087,9,FALSE) ->  | G77: =VLOOKUP($D77,[1]Sheet1!$A$1:$M$5087,12,FALSE) ->  | H77: =VLOOKUP($D77,[1]Sheet1!$A$1:$M$5087,13,FALSE) ->  | K77: Beijing | W77: 1 | Y77: 1 | Z77: 1
A78: 43 | B78: 神舟软件 | D78: 神舟软件 | E78: =VLOOKUP($D78,[1]Sheet1!$A$1:$M$5087,2,FALSE) ->  | F78: =VLOOKUP($D78,[1]Sheet1!$A$1:$M$5087,9,FALSE) ->  | G78: =VLOOKUP($D78,[1]Sheet1!$A$1:$M$5087,12,FALSE) ->  | H78: =VLOOKUP($D78,[1]Sheet1!$A$1:$M$5087,13,FALSE) ->  | K78: Beijing | AA78: 1 | AB78: 1
A79: 44 | B79: 圣邦微电子 | D79: 圣邦微电子 | E79: =VLOOKUP($D79,[1]Sheet1!$A$1:$M$5087,2,FALSE) ->  | F79: =VLOOKUP($D79,[1]Sheet1!$A$1:$M$5087,9,FALSE) ->  | G79: =VLOOKUP($D79,[1]Sheet1!$A$1:$M$5087,12,FALSE) ->  | H79: =VLOOKUP($D79,[1]Sheet1!$A$1:$M$5087,13,FALSE) ->  | K79: Beijing | N79: 1
A80: 45 | B80: 石化盈科 | D80: 石化盈科 | E80: =VLOOKUP($D80,[1]Sheet1!$A$1:$M$5087,2,FALSE) ->  | F80: =VLOOKUP($D80,[1]Sheet1!$A$1:$M$5087,9,FALSE) ->  | G80: =VLOOKUP($D80,[1]Sheet1!$A$1:$M$5087,12,FALSE) ->  | H80: =VLOOKUP($D80,[1]Sheet1!$A$1:$M$5087,13,FALSE) ->  | K80: Beijing | AG80: 1 | AO80: 1 | AP80: 1 | DC80: 1 | DD80: 1 | DE80: 1 | DF80: 1 | DH80: 1 | DI80: 1
A81: 46 | B81: 适创科技 | D81: 适创科技 | E81: =VLOOKUP($D81,[1]Sheet1!$A$1:$M$5087,2,FALSE) ->  | F81: =VLOOKUP($D81,[1]Sheet1!$A$1:$M$5087,9,FALSE) ->  | G81: =VLOOKUP($D81,[1]Sheet1!$A$1:$M$5087,12,FALSE) ->  | H81: =VLOOKUP($D81,[1]Sheet1!$A$1:$M$5087,13,FALSE) ->  | K81: Beijing | X81: 1
A82: 47 | B82: 首自信 | D82: 首自信 | E82: =VLOOKUP($D82,[1]Sheet1!$A$1:$M$5087,2,FALSE) ->  | F82: =VLOOKUP($D82,[1]Sheet1!$A$1:$M$5087,9,FALSE) ->  | G82: =VLOOKUP($D82,[1]Sheet1!$A$1:$M$5087,12,FALSE) ->  | H82: =VLOOKUP($D82,[1]Sheet1!$A$1:$M$5087,13,FALSE) ->  | K82: Beijing | CI82: 1 | CJ82: 1 | CK82: 1 | CL82: 1 | CO82: 1 | CP82: 1 | CQ82: 1 | CR82: 1 | CY82: 1
A83: 48 | B83: 曙光信息 | D83: 曙光信息 | E83: =VLOOKUP($D83,[1]Sheet1!$A$1:$M$5087,2,FALSE) ->  | F83: =VLOOKUP($D83,[1]Sheet1!$A$1:$M$5087,9,FALSE) ->  | G83: =VLOOKUP($D83,[1]Sheet1!$A$1:$M$5087,12,FALSE) ->  | H83: =VLOOKUP($D83,[1]Sheet1!$A$1:$M$5087,13,FALSE) ->  | K83: Beijing | S83: 1
A84: 49 | B84: 数码大方 | D84: 数码大方 | E84: =VLOOKUP($D84,[1]Sheet1!$A$1:$M$5087,2,FALSE) ->  | F84: =VLOOKUP($D84,[1]Sheet1!$A$1:$M$5087,9,FALSE) ->  | G84: =VLOOKUP($D84,[1]Sheet1!$A$1:$M$5087,12,FALSE) ->  | H84: =VLOOKUP($D84,[1]Sheet1!$A$1:$M$5087,13,FALSE) ->  | K84: Beijing | W84: 1 | Z84: 1 | AB84: 1 | AG84: 1 | CO84: 1 | CP84: 1 | CQ84: 1 | CR84: 1
A85: 50 | B85: 索为系统 | D85: 索为系统 | E85: =VLOOKUP($D85,[1]Sheet1!$A$1:$M$5087,2,FALSE) ->  | F85: =VLOOKUP($D85,[1]Sheet1!$A$1:$M$5087,9,FALSE) ->  | G85: =VLOOKUP($D85,[1]Sheet1!$A$1:$M$5087,12,FALSE) ->  | H85: =VLOOKUP($D85,[1]Sheet1!$A$1:$M$5087,13,FALSE) ->  | K85: Beijing | AA85: 1
A86: 51 | B86: 天地和兴 | D86: 天地和兴 | E86: =VLOOKUP($D86,[1]Sheet1!$A$1:$M$5087,2,FALSE) ->  | F86: =VLOOKUP($D86,[1]Sheet1!$A$1:$M$5087,9,FALSE) ->  | G86: =VLOOKUP($D86,[1]Sheet1!$A$1:$M$5087,12,FALSE) ->  | H86: =VLOOKUP($D86,[1]Sheet1!$A$1:$M$5087,13,FALSE) ->  | K86: Beijing | BB86: 1
A87: 52 | B87: 天空卫士 | D87: 天空卫士 | E87: =VLOOKUP($D87,[1]Sheet1!$A$1:$M$5087,2,FALSE) ->  | F87: =VLOOKUP($D87,[1]Sheet1!$A$1:$M$5087,9,FALSE) ->  | G87: =VLOOKUP($D87,[1]Sheet1!$A$1:$M$5087,12,FALSE) ->  | H87: =VLOOKUP($D87,[1]Sheet1!$A$1:$M$5087,13,FALSE) ->  | K87: Beijing | CA87: 1
A88: 54 | B88: 网御星云 | D88: 网御星云 | E88: =VLOOKUP($D88,[1]Sheet1!$A$1:$M$5087,2,FALSE) ->  | F88: =VLOOKUP($D88,[1]Sheet1!$A$1:$M$5087,9,FALSE) ->  | G88: =VLOOKUP($D88,[1]Sheet1!$A$1:$M$5087,12,FALSE) ->  | H88: =VLOOKUP($D88,[1]Sheet1!$A$1:$M$5087,13,FALSE) ->  | K88: Beijing | AX88: 1 | BE88: 1 | BS88: 1
A89: 55 | B89: 威努特 | D89: 威努特 | E89: =VLOOKUP($D89,[1]Sheet1!$A$1:$M$5087,2,FALSE) ->  | F89: =VLOOKUP($D89,[1]Sheet1!$A$1:$M$5087,9,FALSE) ->  | G89: =VLOOKUP($D89,[1]Sheet1!$A$1:$M$5087,12,FALSE) ->  | H89: =VLOOKUP($D89,[1]Sheet1!$A$1:$M$5087,13,FALSE) ->  | K89: Beijing | AV89: 1 | AW89: 1 | AX89: 1 | BB89: 1 | BC89: 1 | BT89: 1
A90: 56 | B90: 芯愿景 | D90: 芯愿景 | E90: =VLOOKUP($D90,[1]Sheet1!$A$1:$M$5087,2,FALSE) ->  | F90: =VLOOKUP($D90,[1]Sheet1!$A$1:$M$5087,9,FALSE) ->  | G90: =VLOOKUP($D90,[1]Sheet1!$A$1:$M$5087,12,FALSE) ->  | H90: =VLOOKUP($D90,[1]Sheet1!$A$1:$M$5087,13,FALSE) ->  | K90: Beijing | N90: 1 | AC90: 1
A91: 57 | B91: 亚控科技 | D91: 亚控科技 | E91: =VLOOKUP($D91,[1]Sheet1!$A$1:$M$5087,2,FALSE) ->  | F91: =VLOOKUP($D91,[1]Sheet1!$A$1:$M$5087,9,FALSE) ->  | G91: =VLOOKUP($D91,[1]Sheet1!$A$1:$M$5087,12,FALSE) ->  | H91: =VLOOKUP($D91,[1]Sheet1!$A$1:$M$5087,13,FALSE) ->  | K91: Beijing | AI91: 1 | DL91: 1 | DM91: 1 | DN91: 1
A92: 59 | B92: 优特捷 | D92: 优特捷 | E92: =VLOOKUP($D92,[1]Sheet1!$A$1:$M$5087,2,FALSE) ->  | F92: =VLOOKUP($D92,[1]Sheet1!$A$1:$M$5087,9,FALSE) ->  | G92: =VLOOKUP($D92,[1]Sheet1!$A$1:$M$5087,12,FALSE) ->  | H92: =VLOOKUP($D92,[1]Sheet1!$A$1:$M$5087,13,FALSE) ->  | K92: Beijing | BF92: 1
A93: 60 | B93: 宇动源 | D93: 宇动源 | E93: =VLOOKUP($D93,[1]Sheet1!$A$1:$M$5087,2,FALSE) ->  | F93: =VLOOKUP($D93,[1]Sheet1!$A$1:$M$5087,9,FALSE) ->  | G93: =VLOOKUP($D93,[1]Sheet1!$A$1:$M$5087,12,FALSE) ->  | H93: =VLOOKUP($D93,[1]Sheet1!$A$1:$M$5087,13,FALSE) ->  | K93: Beijing | CI93: 1 | CJ93: 1 | CK93: 1 | CL93: 1 | CM93: 1
A94: 61 | B94: 元年科技 | D94: 元年科技 | E94: =VLOOKUP($D94,[1]Sheet1!$A$1:$M$5087,2,FALSE) ->  | F94: =VLOOKUP($D94,[1]Sheet1!$A$1:$M$5087,9,FALSE) ->  | G94: =VLOOKUP($D94,[1]Sheet1!$A$1:$M$5087,12,FALSE) ->  | H94: =VLOOKUP($D94,[1]Sheet1!$A$1:$M$5087,13,FALSE) ->  | K94: Beijing | AI94: 1
A95: 62 | B95: 云道智造 | D95: 云道智造 | E95: =VLOOKUP($D95,[1]Sheet1!$A$1:$M$5087,2,FALSE) ->  | F95: =VLOOKUP($D95,[1]Sheet1!$A$1:$M$5087,9,FALSE) ->  | G95: =VLOOKUP($D95,[1]Sheet1!$A$1:$M$5087,12,FALSE) ->  | H95: =VLOOKUP($D95,[1]Sheet1!$A$1:$M$5087,13,FALSE) ->  | K95: Beijing | X95: 1 | CO95: 1 | CP95: 1 | CQ95: 1 | CR95: 1
A96: 63 | B96: 长杨科技 | D96: 长杨科技 | E96: =VLOOKUP($D96,[1]Sheet1!$A$1:$M$5087,2,FALSE) ->  | F96: =VLOOKUP($D96,[1]Sheet1!$A$1:$M$5087,9,FALSE) ->  | G96: =VLOOKUP($D96,[1]Sheet1!$A$1:$M$5087,12,FALSE) ->  | H96: =VLOOKUP($D96,[1]Sheet1!$A$1:$M$5087,13,FALSE) ->  | K96: Beijing | AV96: 1 | BE96: 1 | BU96: 1
A97: 64 | B97: 中电智科 | D97: 中电智科 | E97: =VLOOKUP($D97,[1]Sheet1!$A$1:$M$5087,2,FALSE) ->  | F97: =VLOOKUP($D97,[1]Sheet1!$A$1:$M$5087,9,FALSE) ->  | G97: =VLOOKUP($D97,[1]Sheet1!$A$1:$M$5087,12,FALSE) ->  | H97: =VLOOKUP($D97,[1]Sheet1!$A$1:$M$5087,13,FALSE) ->  | K97: Beijing | O97: 1
A98: 70 | B98: ABB | D98: ABB | E98: =VLOOKUP($D98,[1]Sheet1!$A$1:$M$5087,2,FALSE) ->  | F98: =VLOOKUP($D98,[1]Sheet1!$A$1:$M$5087,9,FALSE) ->  | G98: =VLOOKUP($D98,[1]Sheet1!$A$1:$M$5087,12,FALSE) ->  | H98: =VLOOKUP($D98,[1]Sheet1!$A$1:$M$5087,13,FALSE) ->  | K98: Foreign | AH98: 1 | AJ98: 1
A99: 71 | B99: Altair | D99: Altair | E99: =VLOOKUP($D99,[1]Sheet1!$A$1:$M$5087,2,FALSE) ->  | F99: =VLOOKUP($D99,[1]Sheet1!$A$1:$M$5087,9,FALSE) ->  | G99: =VLOOKUP($D99,[1]Sheet1!$A$1:$M$5087,12,FALSE) ->  | H99: =VLOOKUP($D99,[1]Sheet1!$A$1:$M$5087,13,FALSE) ->  | K99: Foreign | X99: 1
A100: 72 | B100: ANSYS | D100: ANSYS | E100: =VLOOKUP($D100,[1]Sheet1!$A$1:$M$5087,2,FALSE) ->  | F100: =VLOOKUP($D100,[1]Sheet1!$A$1:$M$5087,9,FALSE) ->  | G100: =VLOOKUP($D100,[1]Sheet1!$A$1:$M$5087,12,FALSE) ->  | H100: =VLOOKUP($D100,[1]Sheet1!$A$1:$M$5087,13,FALSE) ->  | K100: Foreign | X100: 1
A101: 73 | B101: FANUC | D101: FANUC | E101: =VLOOKUP($D101,[1]Sheet1!$A$1:$M$5087,2,FALSE) ->  | F101: =VLOOKUP($D101,[1]Sheet1!$A$1:$M$5087,9,FALSE) ->  | G101: =VLOOKUP($D101,[1]Sheet1!$A$1:$M$5087,12,FALSE) ->  | H101: =VLOOKUP($D101,[1]Sheet1!$A$1:$M$5087,13,FALSE) ->  | K101: Foreign | CT101: 1 | CU101: 1 | CV101: 1 | CW101: 1 | CX101: 1 | CY101: 1 | CZ101: 1
A102: 74 | B102: HoneyWell | D102: HoneyWell | E102: =VLOOKUP($D102,[1]Sheet1!$A$1:$M$5087,2,FALSE) ->  | F102: =VLOOKUP($D102,[1]Sheet1!$A$1:$M$5087,9,FALSE) ->  | G102: =VLOOKUP($D102,[1]Sheet1!$A$1:$M$5087,12,FALSE) ->  | H102: =VLOOKUP($D102,[1]Sheet1!$A$1:$M$5087,13,FALSE) ->  | K102: Foreign | AH102: 1 | CT102: 1 | CU102: 1 | CV102: 1 | CW102: 1 | CX102: 1 | CY102: 1 | CZ102: 1
A103: 75 | B103: IBM | D103: IBM | E103: =VLOOKUP($D103,[1]Sheet1!$A$1:$M$5087,2,FALSE) ->  | F103: =VLOOKUP($D103,[1]Sheet1!$A$1:$M$5087,9,FALSE) ->  | G103: =VLOOKUP($D103,[1]Sheet1!$A$1:$M$5087,12,FALSE) ->  | H103: =VLOOKUP($D103,[1]Sheet1!$A$1:$M$5087,13,FALSE) ->  | K103: Foreign | AK103: 1
A104: 76 | B104: MasterCAM | D104: MasterCAM | E104: =VLOOKUP($D104,[1]Sheet1!$A$1:$M$5087,2,FALSE) ->  | F104: =VLOOKUP($D104,[1]Sheet1!$A$1:$M$5087,9,FALSE) ->  | G104: =VLOOKUP($D104,[1]Sheet1!$A$1:$M$5087,12,FALSE) ->  | H104: =VLOOKUP($D104,[1]Sheet1!$A$1:$M$5087,13,FALSE) ->  | K104: Foreign
A105: 77 | B105: Oracle | D105: Oracle | E105: =VLOOKUP($D105,[1]Sheet1!$A$1:$M$5087,2,FALSE) ->  | F105: =VLOOKUP($D105,[1]Sheet1!$A$1:$M$5087,9,FALSE) ->  | G105: =VLOOKUP($D105,[1]Sheet1!$A$1:$M$5087,12,FALSE) ->  | H105: =VLOOKUP($D105,[1]Sheet1!$A$1:$M$5087,13,FALSE) ->  | K105: Foreign | AL105: 1 | AO105: 1 | AP105: 1 | AQ105: 1
A106: 78 | B106: OutSystems | D106: OutSystems | E106: =VLOOKUP($D106,[1]Sheet1!$A$1:$M$5087,2,FALSE) ->  | F106: =VLOOKUP($D106,[1]Sheet1!$A$1:$M$5087,9,FALSE) ->  | G106: =VLOOKUP($D106,[1]Sheet1!$A$1:$M$5087,12,FALSE) ->  | H106: =VLOOKUP($D106,[1]Sheet1!$A$1:$M$5087,13,FALSE) ->  | K106: Foreign | CI106: 1 | CJ106: 1 | CK106: 1 | CL106: 1 | CM106: 1
A107: 79 | B107: PTC | D107: PTC | E107: =VLOOKUP($D107,[1]Sheet1!$A$1:$M$5087,2,FALSE) ->  | F107: =VLOOKUP($D107,[1]Sheet1!$A$1:$M$5087,9,FALSE) ->  | G107: =VLOOKUP($D107,[1]Sheet1!$A$1:$M$5087,12,FALSE) ->  | H107: =VLOOKUP($D107,[1]Sheet1!$A$1:$M$5087,13,FALSE) ->  | K107: Foreign | W107: 1 | Z107: 1 | AB107: 1 | CO107: 1 | CP107: 1 | CQ107: 1 | CR107: 1 | CT107: 1 | CU107: 1 | CV107: 1 | CW107: 1 | CX107: 1 | CY107: 1 | CZ107: 1 | DC107: 1 | DD107: 1 | DE107: 1 | DF107: 1 | DH107: 1 | DI107: 1 | DL107: 1 | DM107: 1 | DN107: 1
A108: 80 | B108: Salesforce | D108: Salesforce | E108: =VLOOKUP($D108,[1]Sheet1!$A$1:$M$5087,2,FALSE) ->  | F108: =VLOOKUP($D108,[1]Sheet1!$A$1:$M$5087,9,FALSE) ->  | G108: =VLOOKUP($D108,[1]Sheet1!$A$1:$M$5087,12,FALSE) ->  | H108: =VLOOKUP($D108,[1]Sheet1!$A$1:$M$5087,13,FALSE) ->  | K108: Foreign | AO108: 1 | AP108: 1 | AQ108: 1 | CI108: 1 | CJ108: 1 | CK108: 1 | CL108: 1 | CM108: 1
A109: 81 | B109: SAP | D109: SAP | E109: =VLOOKUP($D109,[1]Sheet1!$A$1:$M$5087,2,FALSE) ->  | F109: =VLOOKUP($D109,[1]Sheet1!$A$1:$M$5087,9,FALSE) ->  | G109: =VLOOKUP($D109,[1]Sheet1!$A$1:$M$5087,12,FALSE) ->  | H109: =VLOOKUP($D109,[1]Sheet1!$A$1:$M$5087,13,FALSE) ->  | K109: Foreign | AO109: 1 | AP109: 1 | AQ109: 1 | CO109: 1 | CP109: 1 | CQ109: 1 | CR109: 1 | DC109: 1 | DD109: 1 | DE109: 1 | DF109: 1 | DH109: 1 | DI109: 1
A110: 82 | B110: Uptake | D110: Uptake | E110: =VLOOKUP($D110,[1]Sheet1!$A$1:$M$5087,2,FALSE) ->  | F110: =VLOOKUP($D110,[1]Sheet1!$A$1:$M$5087,9,FALSE) ->  | G110: =VLOOKUP($D110,[1]Sheet1!$A$1:$M$5087,12,FALSE) ->  | H110: =VLOOKUP($D110,[1]Sheet1!$A$1:$M$5087,13,FALSE) ->  | K110: Foreign | CO110: 1 | CP110: 1 | CQ110: 1 | CR110: 1
A111: 83 | B111: 艾默生 | D111: 艾默生 | E111: =VLOOKUP($D111,[1]Sheet1!$A$1:$M$5087,2,FALSE) ->  | F111: =VLOOKUP($D111,[1]Sheet1!$A$1:$M$5087,9,FALSE) ->  | G111: =VLOOKUP($D111,[1]Sheet1!$A$1:$M$5087,12,FALSE) ->  | H111: =VLOOKUP($D111,[1]Sheet1!$A$1:$M$5087,13,FALSE) ->  | K111: Foreign | AH111: 1
A112: 84 | B112: 博世 | D112: 博世 | E112: =VLOOKUP($D112,[1]Sheet1!$A$1:$M$5087,2,FALSE) ->  | F112: =VLOOKUP($D112,[1]Sheet1!$A$1:$M$5087,9,FALSE) ->  | G112: =VLOOKUP($D112,[1]Sheet1!$A$1:$M$5087,12,FALSE) ->  | H112: =VLOOKUP($D112,[1]Sheet1!$A$1:$M$5087,13,FALSE) ->  | K112: Foreign | CO112: 1 | CP112: 1 | CQ112: 1 | CR112: 1 | DC112: 1 | DD112: 1 | DE112: 1 | DF112: 1 | DH112: 1 | DI112: 1 | DL112: 1 | DM112: 1 | DN112: 1
A113: 85 | B113: 达索 | D113: 达索 | E113: =VLOOKUP($D113,[1]Sheet1!$A$1:$M$5087,2,FALSE) ->  | F113: =VLOOKUP($D113,[1]Sheet1!$A$1:$M$5087,9,FALSE) ->  | G113: =VLOOKUP($D113,[1]Sheet1!$A$1:$M$5087,12,FALSE) ->  | H113: =VLOOKUP($D113,[1]Sheet1!$A$1:$M$5087,13,FALSE) ->  | K113: Foreign | W113: 1 | Y113: 1 | Z113: 1 | AB113: 1 | CI113: 1 | CJ113: 1 | CK113: 1 | CL113: 1 | CM113: 1
A114: 86 | B114: 戴尔易安信Dell EMC | D114: 戴尔易安信Dell EMC | E114: =VLOOKUP($D114,[1]Sheet1!$A$1:$M$5087,2,FALSE) ->  | F114: =VLOOKUP($D114,[1]Sheet1!$A$1:$M$5087,9,FALSE) ->  | G114: =VLOOKUP($D114,[1]Sheet1!$A$1:$M$5087,12,FALSE) ->  | H114: =VLOOKUP($D114,[1]Sheet1!$A$1:$M$5087,13,FALSE) ->  | K114: Foreign | P114: 1
A115: 87 | B115: 德州仪器 | D115: 德州仪器 | E115: =VLOOKUP($D115,[1]Sheet1!$A$1:$M$5087,2,FALSE) ->  | F115: =VLOOKUP($D115,[1]Sheet1!$A$1:$M$5087,9,FALSE) ->  | G115: =VLOOKUP($D115,[1]Sheet1!$A$1:$M$5087,12,FALSE) ->  | H115: =VLOOKUP($D115,[1]Sheet1!$A$1:$M$5087,13,FALSE) ->  | K115: Foreign | N115: 1
A116: 88 | B116: 慧与科技HPE | D116: 慧与科技HPE | E116: =VLOOKUP($D116,[1]Sheet1!$A$1:$M$5087,2,FALSE) ->  | F116: =VLOOKUP($D116,[1]Sheet1!$A$1:$M$5087,9,FALSE) ->  | G116: =VLOOKUP($D116,[1]Sheet1!$A$1:$M$5087,12,FALSE) ->  | H116: =VLOOKUP($D116,[1]Sheet1!$A$1:$M$5087,13,FALSE) ->  | K116: Foreign | P116: 1
A117: 89 | B117: 罗克韦尔 | D117: 罗克韦尔 | E117: =VLOOKUP($D117,[1]Sheet1!$A$1:$M$5087,2,FALSE) ->  | F117: =VLOOKUP($D117,[1]Sheet1!$A$1:$M$5087,9,FALSE) ->  | G117: =VLOOKUP($D117,[1]Sheet1!$A$1:$M$5087,12,FALSE) ->  | H117: =VLOOKUP($D117,[1]Sheet1!$A$1:$M$5087,13,FALSE) ->  | K117: Foreign | O117: 1 | R117: 1 | AG117: 1
A118: 90 | B118: 明导国际Mentor | D118: 明导国际Mentor | E118: =VLOOKUP($D118,[1]Sheet1!$A$1:$M$5087,2,FALSE) ->  | F118: =VLOOKUP($D118,[1]Sheet1!$A$1:$M$5087,9,FALSE) ->  | G118: =VLOOKUP($D118,[1]Sheet1!$A$1:$M$5087,12,FALSE) ->  | H118: =VLOOKUP($D118,[1]Sheet1!$A$1:$M$5087,13,FALSE) ->  | K118: Foreign | AC118: 1
A119: 91 | B119: 摩莎 | D119: 摩莎 | E119: =VLOOKUP($D119,[1]Sheet1!$A$1:$M$5087,2,FALSE) ->  | F119: =VLOOKUP($D119,[1]Sheet1!$A$1:$M$5087,9,FALSE) ->  | G119: =VLOOKUP($D119,[1]Sheet1!$A$1:$M$5087,12,FALSE) ->  | H119: =VLOOKUP($D119,[1]Sheet1!$A$1:$M$5087,13,FALSE) ->  | K119: Foreign | R119: 1
A120: 92 | B120: 欧姆龙 | D120: 欧姆龙 | E120: =VLOOKUP($D120,[1]Sheet1!$A$1:$M$5087,2,FALSE) ->  | F120: =VLOOKUP($D120,[1]Sheet1!$A$1:$M$5087,9,FALSE) ->  | G120: =VLOOKUP($D120,[1]Sheet1!$A$1:$M$5087,12,FALSE) ->  | H120: =VLOOKUP($D120,[1]Sheet1!$A$1:$M$5087,13,FALSE) ->  | K120: Foreign | AJ120: 1
A121: 93 | B121: 锵腾电子Cadence | D121: 锵腾电子Cadence | E121: =VLOOKUP($D121,[1]Sheet1!$A$1:$M$5087,2,FALSE) ->  | F121: =VLOOKUP($D121,[1]Sheet1!$A$1:$M$5087,9,FALSE) ->  | G121: =VLOOKUP($D121,[1]Sheet1!$A$1:$M$5087,12,FALSE) ->  | H121: =VLOOKUP($D121,[1]Sheet1!$A$1:$M$5087,13,FALSE) ->  | K121: Foreign | AC121: 1
A122: 94 | B122: 三菱电机 | D122: 三菱电机 | E122: =VLOOKUP($D122,[1]Sheet1!$A$1:$M$5087,2,FALSE) ->  | F122: =VLOOKUP($D122,[1]Sheet1!$A$1:$M$5087,9,FALSE) ->  | G122: =VLOOKUP($D122,[1]Sheet1!$A$1:$M$5087,12,FALSE) ->  | H122: =VLOOKUP($D122,[1]Sheet1!$A$1:$M$5087,13,FALSE) ->  | K122: Foreign | O122: 1
A123: 95 | B123: 施耐德 | D123: 施耐德 | E123: =VLOOKUP($D123,[1]Sheet1!$A$1:$M$5087,2,FALSE) ->  | F123: =VLOOKUP($D123,[1]Sheet1!$A$1:$M$5087,9,FALSE) ->  | G123: =VLOOKUP($D123,[1]Sheet1!$A$1:$M$5087,12,FALSE) ->  | H123: =VLOOKUP($D123,[1]Sheet1!$A$1:$M$5087,13,FALSE) ->  | K123: Foreign | T123: 1 | DL123: 1 | DM123: 1 | DN123: 1
A124: 96 | B124: 思科 | D124: 思科 | E124: =VLOOKUP($D124,[1]Sheet1!$A$1:$M$5087,2,FALSE) ->  | F124: =VLOOKUP($D124,[1]Sheet1!$A$1:$M$5087,9,FALSE) ->  | G124: =VLOOKUP($D124,[1]Sheet1!$A$1:$M$5087,12,FALSE) ->  | H124: =VLOOKUP($D124,[1]Sheet1!$A$1:$M$5087,13,FALSE) ->  | K124: Foreign | R124: 1 | T124: 1
A125: 97 | B125: 通用电器 | D125: 通用电器 | E125: =VLOOKUP($D125,[1]Sheet1!$A$1:$M$5087,2,FALSE) ->  | F125: =VLOOKUP($D125,[1]Sheet1!$A$1:$M$5087,9,FALSE) ->  | G125: =VLOOKUP($D125,[1]Sheet1!$A$1:$M$5087,12,FALSE) ->  | H125: =VLOOKUP($D125,[1]Sheet1!$A$1:$M$5087,13,FALSE) ->  | K125: Foreign | T125: 1 | AG125: 1 | AI125: 1 | CT125: 1 | CU125: 1 | CV125: 1 | CW125: 1 | CX125: 1 | CY125: 1 | CZ125: 1
A126: 98 | B126: 微软Azure | D126: 微软Azure | E126: =VLOOKUP($D126,[1]Sheet1!$A$1:$M$5087,2,FALSE) ->  | F126: =VLOOKUP($D126,[1]Sheet1!$A$1:$M$5087,9,FALSE) ->  | G126: =VLOOKUP($D126,[1]Sheet1!$A$1:$M$5087,12,FALSE) ->  | H126: =VLOOKUP($D126,[1]Sheet1!$A$1:$M$5087,13,FALSE) ->  | K126: Foreign | DJ126: 1
A127: 99 | B127: 西门子 | D127: 西门子 | E127: =VLOOKUP($D127,[1]Sheet1!$A$1:$M$5087,2,FALSE) ->  | F127: =VLOOKUP($D127,[1]Sheet1!$A$1:$M$5087,9,FALSE) ->  | G127: =VLOOKUP($D127,[1]Sheet1!$A$1:$M$5087,12,FALSE) ->  | H127: =VLOOKUP($D127,[1]Sheet1!$A$1:$M$5087,13,FALSE) ->  | K127: Foreign | O127: 1 | R127: 1 | W127: 1 | X127: 1 | Y127: 1 | Z127: 1 | AA127: 1 | AB127: 1 | AG127: 1 | AI127: 1 | AJ127: 1 | CI127: 1 | CJ127: 1 | CK127: 1 | CL127: 1 | CM127: 1 | CO127: 1 | CP127: 1 | CQ127: 1 | CR127: 1 | CT127: 1 | CU127: 1 | CV127: 1 | CW127: 1 | CX127: 1 | CY127: 1 | CZ127: 1 | DC127: 1 | DD127: 1 | DE127: 1 | DF127: 1 | DH127: 1 | DI127: 1 | DL127: 1 | DM127: 1 | DN127: 1
A128: 100 | B128: 新思科技Synopsys | D128: 新思科技Synopsys | E128: =VLOOKUP($D128,[1]Sheet1!$A$1:$M$5087,2,FALSE) ->  | F128: =VLOOKUP($D128,[1]Sheet1!$A$1:$M$5087,9,FALSE) ->  | G128: =VLOOKUP($D128,[1]Sheet1!$A$1:$M$5087,12,FALSE) ->  | H128: =VLOOKUP($D128,[1]Sheet1!$A$1:$M$5087,13,FALSE) ->  | K128: Foreign | AC128: 1
A129: 101 | B129: 亚德诺半导体 | D129: 亚德诺半导体 | E129: =VLOOKUP($D129,[1]Sheet1!$A$1:$M$5087,2,FALSE) ->  | F129: =VLOOKUP($D129,[1]Sheet1!$A$1:$M$5087,9,FALSE) ->  | G129: =VLOOKUP($D129,[1]Sheet1!$A$1:$M$5087,12,FALSE) ->  | H129: =VLOOKUP($D129,[1]Sheet1!$A$1:$M$5087,13,FALSE) ->  | K129: Foreign | N129: 1
A130: 102 | B130: 亚马逊AWS | D130: 亚马逊AWS | E130: =VLOOKUP($D130,[1]Sheet1!$A$1:$M$5087,2,FALSE) ->  | F130: =VLOOKUP($D130,[1]Sheet1!$A$1:$M$5087,9,FALSE) ->  | G130: =VLOOKUP($D130,[1]Sheet1!$A$1:$M$5087,12,FALSE) ->  | H130: =VLOOKUP($D130,[1]Sheet1!$A$1:$M$5087,13,FALSE) ->  | K130: Foreign | DC130: 1 | DD130: 1 | DE130: 1 | DF130: 1 | DH130: 1 | DI130: 1 | DJ130: 1
A131: 103 | B131: 意法半导体 | D131: 意法半导体 | E131: =VLOOKUP($D131,[1]Sheet1!$A$1:$M$5087,2,FALSE) ->  | F131: =VLOOKUP($D131,[1]Sheet1!$A$1:$M$5087,9,FALSE) ->  | G131: =VLOOKUP($D131,[1]Sheet1!$A$1:$M$5087,12,FALSE) ->  | H131: =VLOOKUP($D131,[1]Sheet1!$A$1:$M$5087,13,FALSE) ->  | K131: Foreign | N131: 1
A132: 104 | B132: 英飞凌 | D132: 英飞凌 | E132: =VLOOKUP($D132,[1]Sheet1!$A$1:$M$5087,2,FALSE) ->  | F132: =VLOOKUP($D132,[1]Sheet1!$A$1:$M$5087,9,FALSE) ->  | G132: =VLOOKUP($D132,[1]Sheet1!$A$1:$M$5087,12,FALSE) ->  | H132: =VLOOKUP($D132,[1]Sheet1!$A$1:$M$5087,13,FALSE) ->  | K132: Foreign | N132: 1
A133: 105 | B133: 英特尔 | D133: 英特尔 | E133: =VLOOKUP($D133,[1]Sheet1!$A$1:$M$5087,2,FALSE) ->  | F133: =VLOOKUP($D133,[1]Sheet1!$A$1:$M$5087,9,FALSE) ->  | G133: =VLOOKUP($D133,[1]Sheet1!$A$1:$M$5087,12,FALSE) ->  | H133: =VLOOKUP($D133,[1]Sheet1!$A$1:$M$5087,13,FALSE) ->  | K133: Foreign | N133: 1
A134: 106 | B134: 阿里 | D134: 阿里 | E134: =VLOOKUP($D134,[1]Sheet1!$A$1:$M$5087,2,FALSE) ->  | F134: =VLOOKUP($D134,[1]Sheet1!$A$1:$M$5087,9,FALSE) ->  | G134: =VLOOKUP($D134,[1]Sheet1!$A$1:$M$5087,12,FALSE) ->  | H134: =VLOOKUP($D134,[1]Sheet1!$A$1:$M$5087,13,FALSE) ->  | K134: Non_Beijing | P134: 1 | R134: 1 | AL134: 1 | CI134: 1 | CJ134: 1 | CK134: 1 | CL134: 1 | CM134: 1 | CT134: 1 | CU134: 1 | CV134: 1 | CW134: 1 | CX134: 1 | CY134: 1 | CZ134: 1 | DJ134: 1
A135: 108 | B135: 百度 | D135: 百度 | E135: =VLOOKUP($D135,[1]Sheet1!$A$1:$M$5087,2,FALSE) ->  | F135: =VLOOKUP($D135,[1]Sheet1!$A$1:$M$5087,9,FALSE) ->  | G135: =VLOOKUP($D135,[1]Sheet1!$A$1:$M$5087,12,FALSE) ->  | H135: =VLOOKUP($D135,[1]Sheet1!$A$1:$M$5087,13,FALSE) ->  | K135: Non_Beijing | CT135: 1 | CU135: 1 | CV135: 1 | CW135: 1 | CX135: 1 | CY135: 1 | CZ135: 1 | DJ135: 1
A136: 110 | B136: 晨科软件 | D136: 晨科软件 | E136: =VLOOKUP($D136,[1]Sheet1!$A$1:$M$5087,2,FALSE) ->  | F136: =VLOOKUP($D136,[1]Sheet1!$A$1:$M$5087,9,FALSE) ->  | G136: =VLOOKUP($D136,[1]Sheet1!$A$1:$M$5087,12,FALSE) ->  | H136: =VLOOKUP($D136,[1]Sheet1!$A$1:$M$5087,13,FALSE) ->  | K136: Non_Beijing | AK136: 1
A137: 113 | B137: 飞腾信息 | D137: 飞腾信息 | E137: =VLOOKUP($D137,[1]Sheet1!$A$1:$M$5087,2,FALSE) ->  | F137: =VLOOKUP($D137,[1]Sheet1!$A$1:$M$5087,9,FALSE) ->  | G137: =VLOOKUP($D137,[1]Sheet1!$A$1:$M$5087,12,FALSE) ->  | H137: =VLOOKUP($D137,[1]Sheet1!$A$1:$M$5087,13,FALSE) ->  | K137: Non_Beijing | N137: 1
A138: 114 | B138: 富勒科技 | D138: 富勒科技 | E138: =VLOOKUP($D138,[1]Sheet1!$A$1:$M$5087,2,FALSE) ->  | F138: =VLOOKUP($D138,[1]Sheet1!$A$1:$M$5087,9,FALSE) ->  | G138: =VLOOKUP($D138,[1]Sheet1!$A$1:$M$5087,12,FALSE) ->  | H138: =VLOOKUP($D138,[1]Sheet1!$A$1:$M$5087,13,FALSE) ->  | K138: Non_Beijing | AS138: 1
A139: 115 | B139: 富士康 | D139: 富士康 | E139: =VLOOKUP($D139,[1]Sheet1!$A$1:$M$5087,2,FALSE) ->  | F139: =VLOOKUP($D139,[1]Sheet1!$A$1:$M$5087,9,FALSE) ->  | G139: =VLOOKUP($D139,[1]Sheet1!$A$1:$M$5087,12,FALSE) ->  | H139: =VLOOKUP($D139,[1]Sheet1!$A$1:$M$5087,13,FALSE) ->  | K139: Non_Beijing | P139: 1 | DC139: 1 | DD139: 1 | DE139: 1 | DF139: 1 | DH139: 1 | DI139: 1
A140: 117 | B140: 格创东智 | D140: 格创东智 | E140: =VLOOKUP($D140,[1]Sheet1!$A$1:$M$5087,2,FALSE) ->  | F140: =VLOOKUP($D140,[1]Sheet1!$A$1:$M$5087,9,FALSE) ->  | G140: =VLOOKUP($D140,[1]Sheet1!$A$1:$M$5087,12,FALSE) ->  | H140: =VLOOKUP($D140,[1]Sheet1!$A$1:$M$5087,13,FALSE) ->  | K140: Non_Beijing | CI140: 1 | CJ140: 1 | CK140: 1 | CL140: 1 | CM140: 1 | DC140: 1 | DD140: 1 | DE140: 1 | DF140: 1 | DH140: 1 | DI140: 1
A141: 118 | B141: 工邦邦 | D141: 工邦邦 | E141: =VLOOKUP($D141,[1]Sheet1!$A$1:$M$5087,2,FALSE) ->  | F141: =VLOOKUP($D141,[1]Sheet1!$A$1:$M$5087,9,FALSE) ->  | G141: =VLOOKUP($D141,[1]Sheet1!$A$1:$M$5087,12,FALSE) ->  | H141: =VLOOKUP($D141,[1]Sheet1!$A$1:$M$5087,13,FALSE) ->  | K141: Non_Beijing | AL141: 1
A142: 120 | B142: 广州数控 | D142: 广州数控 | E142: =VLOOKUP($D142,[1]Sheet1!$A$1:$M$5087,2,FALSE) ->  | F142: =VLOOKUP($D142,[1]Sheet1!$A$1:$M$5087,9,FALSE) ->  | G142: =VLOOKUP($D142,[1]Sheet1!$A$1:$M$5087,12,FALSE) ->  | H142: =VLOOKUP($D142,[1]Sheet1!$A$1:$M$5087,13,FALSE) ->  | K142: Non_Beijing | T142: 1
A143: 121 | B143: 广州智臣 | D143: 广州智臣 | E143: =VLOOKUP($D143,[1]Sheet1!$A$1:$M$5087,2,FALSE) ->  | F143: =VLOOKUP($D143,[1]Sheet1!$A$1:$M$5087,9,FALSE) ->  | G143: =VLOOKUP($D143,[1]Sheet1!$A$1:$M$5087,12,FALSE) ->  | H143: =VLOOKUP($D143,[1]Sheet1!$A$1:$M$5087,13,FALSE) ->  | K143: Non_Beijing | BE143: 1
A144: 125 | B144: 华数机器人 | D144: 华数机器人 | E144: =VLOOKUP($D144,[1]Sheet1!$A$1:$M$5087,2,FALSE) ->  | F144: =VLOOKUP($D144,[1]Sheet1!$A$1:$M$5087,9,FALSE) ->  | G144: =VLOOKUP($D144,[1]Sheet1!$A$1:$M$5087,12,FALSE) ->  | H144: =VLOOKUP($D144,[1]Sheet1!$A$1:$M$5087,13,FALSE) ->  | K144: Non_Beijing | T144: 1
A145: 126 | B145: 华为 | D145: 华为 | E145: =VLOOKUP($D145,[1]Sheet1!$A$1:$M$5087,2,FALSE) ->  | F145: =VLOOKUP($D145,[1]Sheet1!$A$1:$M$5087,9,FALSE) ->  | G145: =VLOOKUP($D145,[1]Sheet1!$A$1:$M$5087,12,FALSE) ->  | H145: =VLOOKUP($D145,[1]Sheet1!$A$1:$M$5087,13,FALSE) ->  | K145: Non_Beijing | P145: 1 | R145: 1 | T145: 1 | AV145: 1 | AW145: 1 | BD145: 1 | BK145: 1 | BO145: 1 | BW145: 1 | CM145: 1 | CT145: 1 | CU145: 1 | CV145: 1 | CW145: 1 | CX145: 1 | CY145: 1 | CZ145: 1 | DJ145: 1 | DL145: 1 | DM145: 1 | DN145: 1
A146: 127 | B146: 华为海思 | D146: 华为海思 | E146: =VLOOKUP($D146,[1]Sheet1!$A$1:$M$5087,2,FALSE) ->  | F146: =VLOOKUP($D146,[1]Sheet1!$A$1:$M$5087,9,FALSE) ->  | G146: =VLOOKUP($D146,[1]Sheet1!$A$1:$M$5087,12,FALSE) ->  | H146: =VLOOKUP($D146,[1]Sheet1!$A$1:$M$5087,13,FALSE) ->  | K146: Non_Beijing | N146: 1 | P146: 1
A147: 130 | B147: 金蝶 | D147: 金蝶 | E147: =VLOOKUP($D147,[1]Sheet1!$A$1:$M$5087,2,FALSE) ->  | F147: =VLOOKUP($D147,[1]Sheet1!$A$1:$M$5087,9,FALSE) ->  | G147: =VLOOKUP($D147,[1]Sheet1!$A$1:$M$5087,12,FALSE) ->  | H147: =VLOOKUP($D147,[1]Sheet1!$A$1:$M$5087,13,FALSE) ->  | K147: Non_Beijing | AE147: 1 | AO147: 1 | AP147: 1 | AQ147: 1 | AS147: 1
A148: 131 | B148: 九物互联 | D148: 九物互联 | E148: =VLOOKUP($D148,[1]Sheet1!$A$1:$M$5087,2,FALSE) ->  | F148: =VLOOKUP($D148,[1]Sheet1!$A$1:$M$5087,9,FALSE) ->  | G148: =VLOOKUP($D148,[1]Sheet1!$A$1:$M$5087,12,FALSE) ->  | H148: =VLOOKUP($D148,[1]Sheet1!$A$1:$M$5087,13,FALSE) ->  | K148: Non_Beijing | CI148: 1 | CJ148: 1 | CK148: 1 | CL148: 1 | CM148: 1
A149: 134 | B149: 朗坤智慧 | D149: 朗坤智慧 | E149: =VLOOKUP($D149,[1]Sheet1!$A$1:$M$5087,2,FALSE) ->  | F149: =VLOOKUP($D149,[1]Sheet1!$A$1:$M$5087,9,FALSE) ->  | G149: =VLOOKUP($D149,[1]Sheet1!$A$1:$M$5087,12,FALSE) ->  | H149: =VLOOKUP($D149,[1]Sheet1!$A$1:$M$5087,13,FALSE) ->  | K149: Non_Beijing | AK149: 1
A150: 137 | B150: 美林数据 | D150: 美林数据 | E150: =VLOOKUP($D150,[1]Sheet1!$A$1:$M$5087,2,FALSE) ->  | F150: =VLOOKUP($D150,[1]Sheet1!$A$1:$M$5087,9,FALSE) ->  | G150: =VLOOKUP($D150,[1]Sheet1!$A$1:$M$5087,12,FALSE) ->  | H150: =VLOOKUP($D150,[1]Sheet1!$A$1:$M$5087,13,FALSE) ->  | K150: Non_Beijing | DC150: 1 | DD150: 1 | DE150: 1 | DF150: 1 | DH150: 1 | DI150: 1
A151: 141 | B151: 上海新华控制 | D151: 上海新华控制 | E151: =VLOOKUP($D151,[1]Sheet1!$A$1:$M$5087,2,FALSE) ->  | F151: =VLOOKUP($D151,[1]Sheet1!$A$1:$M$5087,9,FALSE) ->  | G151: =VLOOKUP($D151,[1]Sheet1!$A$1:$M$5087,12,FALSE) ->  | H151: =VLOOKUP($D151,[1]Sheet1!$A$1:$M$5087,13,FALSE) ->  | K151: Non_Beijing | AH151: 1
A152: 143 | B152: 沈阳自动化研究所 | D152: 沈阳自动化研究所 | E152: =VLOOKUP($D152,[1]Sheet1!$A$1:$M$5087,2,FALSE) ->  | F152: =VLOOKUP($D152,[1]Sheet1!$A$1:$M$5087,9,FALSE) ->  | G152: =VLOOKUP($D152,[1]Sheet1!$A$1:$M$5087,12,FALSE) ->  | H152: =VLOOKUP($D152,[1]Sheet1!$A$1:$M$5087,13,FALSE) ->  | K152: Non_Beijing | CI152: 1 | CJ152: 1 | CK152: 1 | CL152: 1 | CM152: 1
A153: 144 | B153: 树根互联 | D153: 树根互联 | E153: =VLOOKUP($D153,[1]Sheet1!$A$1:$M$5087,2,FALSE) ->  | F153: =VLOOKUP($D153,[1]Sheet1!$A$1:$M$5087,9,FALSE) ->  | G153: =VLOOKUP($D153,[1]Sheet1!$A$1:$M$5087,12,FALSE) ->  | H153: =VLOOKUP($D153,[1]Sheet1!$A$1:$M$5087,13,FALSE) ->  | K153: Non_Beijing | CO153: 1 | CP153: 1 | CQ153: 1 | CR153: 1
A154: 145 | B154: 思普软件 | D154: 思普软件 | E154: =VLOOKUP($D154,[1]Sheet1!$A$1:$M$5087,2,FALSE) ->  | F154: =VLOOKUP($D154,[1]Sheet1!$A$1:$M$5087,9,FALSE) ->  | G154: =VLOOKUP($D154,[1]Sheet1!$A$1:$M$5087,12,FALSE) ->  | H154: =VLOOKUP($D154,[1]Sheet1!$A$1:$M$5087,13,FALSE) ->  | K154: Non_Beijing | Z154: 1
A155: 146 | B155: 苏州浩辰 | D155: 苏州浩辰 | E155: =VLOOKUP($D155,[1]Sheet1!$A$1:$M$5087,2,FALSE) ->  | F155: =VLOOKUP($D155,[1]Sheet1!$A$1:$M$5087,9,FALSE) ->  | G155: =VLOOKUP($D155,[1]Sheet1!$A$1:$M$5087,12,FALSE) ->  | H155: =VLOOKUP($D155,[1]Sheet1!$A$1:$M$5087,13,FALSE) ->  | K155: Non_Beijing | W155: 1
A156: 148 | B156: 腾讯 | D156: 腾讯 | E156: =VLOOKUP($D156,[1]Sheet1!$A$1:$M$5087,2,FALSE) ->  | F156: =VLOOKUP($D156,[1]Sheet1!$A$1:$M$5087,9,FALSE) ->  | G156: =VLOOKUP($D156,[1]Sheet1!$A$1:$M$5087,12,FALSE) ->  | H156: =VLOOKUP($D156,[1]Sheet1!$A$1:$M$5087,13,FALSE) ->  | K156: Non_Beijing | CI156: 1 | CJ156: 1 | CK156: 1 | CL156: 1 | CM156: 1 | CT156: 1 | CU156: 1 | CV156: 1 | CW156: 1 | CX156: 1 | CY156: 1 | CZ156: 1 | DJ156: 1
A157: 149 | B157: 天泽智云 | D157: 天泽智云 | E157: =VLOOKUP($D157,[1]Sheet1!$A$1:$M$5087,2,FALSE) ->  | F157: =VLOOKUP($D157,[1]Sheet1!$A$1:$M$5087,9,FALSE) ->  | G157: =VLOOKUP($D157,[1]Sheet1!$A$1:$M$5087,12,FALSE) ->  | H157: =VLOOKUP($D157,[1]Sheet1!$A$1:$M$5087,13,FALSE) ->  | K157: Non_Beijing | CO157: 1 | CP157: 1 | CQ157: 1 | CR157: 1
A158: 151 | B158: 唯智信息 | D158: 唯智信息 | E158: =VLOOKUP($D158,[1]Sheet1!$A$1:$M$5087,2,FALSE) ->  | F158: =VLOOKUP($D158,[1]Sheet1!$A$1:$M$5087,9,FALSE) ->  | G158: =VLOOKUP($D158,[1]Sheet1!$A$1:$M$5087,12,FALSE) ->  | H158: =VLOOKUP($D158,[1]Sheet1!$A$1:$M$5087,13,FALSE) ->  | K158: Non_Beijing | AS158: 1
A159: 153 | B159: 武汉开目 | D159: 武汉开目 | E159: =VLOOKUP($D159,[1]Sheet1!$A$1:$M$5087,2,FALSE) ->  | F159: =VLOOKUP($D159,[1]Sheet1!$A$1:$M$5087,9,FALSE) ->  | G159: =VLOOKUP($D159,[1]Sheet1!$A$1:$M$5087,12,FALSE) ->  | H159: =VLOOKUP($D159,[1]Sheet1!$A$1:$M$5087,13,FALSE) ->  | K159: Non_Beijing | W159: 1 | Z159: 1
A160: 154 | B160: 西格数据 | D160: 西格数据 | E160: =VLOOKUP($D160,[1]Sheet1!$A$1:$M$5087,2,FALSE) ->  | F160: =VLOOKUP($D160,[1]Sheet1!$A$1:$M$5087,9,FALSE) ->  | G160: =VLOOKUP($D160,[1]Sheet1!$A$1:$M$5087,12,FALSE) ->  | H160: =VLOOKUP($D160,[1]Sheet1!$A$1:$M$5087,13,FALSE) ->  | K160: Non_Beijing | DC160: 1 | DD160: 1 | DE160: 1 | DF160: 1 | DH160: 1 | DI160: 1
A161: 155 | B161: 小米 | D161: 小米 | E161: =VLOOKUP($D161,[1]Sheet1!$A$1:$M$5087,2,FALSE) ->  | F161: =VLOOKUP($D161,[1]Sheet1!$A$1:$M$5087,9,FALSE) ->  | G161: =VLOOKUP($D161,[1]Sheet1!$A$1:$M$5087,12,FALSE) ->  | H161: =VLOOKUP($D161,[1]Sheet1!$A$1:$M$5087,13,FALSE) ->  | K161: Non_Beijing | DL161: 1 | DM161: 1 | DN161: 1
A162: 156 | B162: 芯禾科技 | D162: 芯禾科技 | E162: =VLOOKUP($D162,[1]Sheet1!$A$1:$M$5087,2,FALSE) ->  | F162: =VLOOKUP($D162,[1]Sheet1!$A$1:$M$5087,9,FALSE) ->  | G162: =VLOOKUP($D162,[1]Sheet1!$A$1:$M$5087,12,FALSE) ->  | H162: =VLOOKUP($D162,[1]Sheet1!$A$1:$M$5087,13,FALSE) ->  | K162: Non_Beijing | AC162: 1
A163: 157 | B163: 新华三 | D163: 新华三 | E163: =VLOOKUP($D163,[1]Sheet1!$A$1:$M$5087,2,FALSE) ->  | F163: =VLOOKUP($D163,[1]Sheet1!$A$1:$M$5087,9,FALSE) ->  | G163: =VLOOKUP($D163,[1]Sheet1!$A$1:$M$5087,12,FALSE) ->  | H163: =VLOOKUP($D163,[1]Sheet1!$A$1:$M$5087,13,FALSE) ->  | K163: Non_Beijing | AV163: 1 | AW163: 1
A164: 158 | B164: 信大捷安 | D164: 信大捷安 | E164: =VLOOKUP($D164,[1]Sheet1!$A$1:$M$5087,2,FALSE) ->  | F164: =VLOOKUP($D164,[1]Sheet1!$A$1:$M$5087,9,FALSE) ->  | G164: =VLOOKUP($D164,[1]Sheet1!$A$1:$M$5087,12,FALSE) ->  | H164: =VLOOKUP($D164,[1]Sheet1!$A$1:$M$5087,13,FALSE) ->  | K164: Non_Beijing | BQ164: 1
A165: 160 | B165: 亚信科技 | D165: 亚信科技 | E165: =VLOOKUP($D165,[1]Sheet1!$A$1:$M$5087,2,FALSE) ->  | F165: =VLOOKUP($D165,[1]Sheet1!$A$1:$M$5087,9,FALSE) ->  | G165: =VLOOKUP($D165,[1]Sheet1!$A$1:$M$5087,12,FALSE) ->  | H165: =VLOOKUP($D165,[1]Sheet1!$A$1:$M$5087,13,FALSE) ->  | K165: Non_Beijing | AX165: 1
A166: 161 | B166: 研华科技 | D166: 研华科技 | E166: =VLOOKUP($D166,[1]Sheet1!$A$1:$M$5087,2,FALSE) ->  | F166: =VLOOKUP($D166,[1]Sheet1!$A$1:$M$5087,9,FALSE) ->  | G166: =VLOOKUP($D166,[1]Sheet1!$A$1:$M$5087,12,FALSE) ->  | H166: =VLOOKUP($D166,[1]Sheet1!$A$1:$M$5087,13,FALSE) ->  | K166: Non_Beijing | DL166: 1 | DM166: 1 | DN166: 1
A167: 162 | B167: 壹进制 | D167: 壹进制 | E167: =VLOOKUP($D167,[1]Sheet1!$A$1:$M$5087,2,FALSE) ->  | F167: =VLOOKUP($D167,[1]Sheet1!$A$1:$M$5087,9,FALSE) ->  | G167: =VLOOKUP($D167,[1]Sheet1!$A$1:$M$5087,12,FALSE) ->  | H167: =VLOOKUP($D167,[1]Sheet1!$A$1:$M$5087,13,FALSE) ->  | K167: Non_Beijing | CB167: 1 | CC167: 1
A168: 163 | B168: 优也科技 | D168: 优也科技 | E168: =VLOOKUP($D168,[1]Sheet1!$A$1:$M$5087,2,FALSE) ->  | F168: =VLOOKUP($D168,[1]Sheet1!$A$1:$M$5087,9,FALSE) ->  | G168: =VLOOKUP($D168,[1]Sheet1!$A$1:$M$5087,12,FALSE) ->  | H168: =VLOOKUP($D168,[1]Sheet1!$A$1:$M$5087,13,FALSE) ->  | K168: Non_Beijing | DC168: 1 | DD168: 1 | DE168: 1 | DF168: 1 | DH168: 1 | DI168: 1
A169: 164 | B169: 震坤行 | D169: 震坤行 | E169: =VLOOKUP($D169,[1]Sheet1!$A$1:$M$5087,2,FALSE) ->  | F169: =VLOOKUP($D169,[1]Sheet1!$A$1:$M$5087,9,FALSE) ->  | G169: =VLOOKUP($D169,[1]Sheet1!$A$1:$M$5087,12,FALSE) ->  | H169: =VLOOKUP($D169,[1]Sheet1!$A$1:$M$5087,13,FALSE) ->  | K169: Non_Beijing | AL169: 1
A170: 165 | B170: 智能云科 | D170: 智能云科 | E170: =VLOOKUP($D170,[1]Sheet1!$A$1:$M$5087,2,FALSE) ->  | F170: =VLOOKUP($D170,[1]Sheet1!$A$1:$M$5087,9,FALSE) ->  | G170: =VLOOKUP($D170,[1]Sheet1!$A$1:$M$5087,12,FALSE) ->  | H170: =VLOOKUP($D170,[1]Sheet1!$A$1:$M$5087,13,FALSE) ->  | K170: Non_Beijing | CO170: 1 | CP170: 1 | CQ170: 1 | CR170: 1
A171: 166 | B171: 中国电子科技网络信息安全 | D171: 中国电子科技网络信息安全 | E171: =VLOOKUP($D171,[1]Sheet1!$A$1:$M$5087,2,FALSE) ->  | F171: =VLOOKUP($D171,[1]Sheet1!$A$1:$M$5087,9,FALSE) ->  | G171: =VLOOKUP($D171,[1]Sheet1!$A$1:$M$5087,12,FALSE) ->  | H171: =VLOOKUP($D171,[1]Sheet1!$A$1:$M$5087,13,FALSE) ->  | K171: Non_Beijing | T171: 1

Sheet Sheet1
A1: 类型 | B1: 数据来源 | C1: 汇率
A2: 中国 | B2: https://www.qcc.com/ | C2: 1
A3: 港股上市
A4: 美股上市 | B4: https://finance.sina.com.cn/stock/usstock/ https://cn.bing.com/ | C4: SEK 1.53
